Cogmind - Beta 15 @@@ ROGUE MODE // 2025.05.10 @ 01:07:15 Player: Infomantis Result: Destroyed by P-80 Master with Gamma Rifle Performance ------------- Evolutions (8) 4000 Regions Visited (35) 7000 Robots Destroyed (431) 2155 Value Destroyed (26073) 26073 Prototype IDs (136) 2720 Alien Tech Used (0) 0 Bonus (16205) 16205 TOTAL SCORE: 58153 Bonus ------- High Alert Combat Kills 4812 Follower Combat Kills 3593 Entered Garrisons 2000 Used RIF Installer 5500 Aligned with FarCom 300 Cogmind --------- Core Integrity 0/1450 Matter 246/300 Energy 1587/1620 System Corruption 27% Temperature Cool (43) Movement Flying (55) Location -2/Garrison Parts ------- > --- POWER (2) -------- Light Antimatter Reactor Antimatter-Quantum Reactor > --- PROPULSION (6) --- Flying Surge-Biometal Exoskeleton > --- UTILITY (12) ----- Scrap Engine Concept Thermoelectric Network Concept Antigrav Storage Unit Concept Chromion Battery Experimental Core Analyzer Concept Phase Shift Module Concept Cloak Mesh (fused) Graphene Brace (fused) Relay Coupler [NC] (34) Relay Coupler [Behemoth] (10) > --- WEAPON (3) ------- Concept Smart ZDS > --- INVENTORY (25) --- Advanced Heat Sink Concept Thermoelectric Network Concept Antigrav Storage Unit Concept NT7 Matterbank (619) Advanced Point Defense System Experimental Hacking Suite Concept Network Penetrator Relay Coupler [Hunter] (16) Relay Coupler [Proto] (9) Relay Coupler [Proto] (9) Relay Coupler [Proto] (9) Relay Coupler [Proto] (9) Concept Matter Streamer Crosscalibrator Transdimensional Reconstructor Concept Lightning Penetrator Concept Heavy Railcannon Concept EMP Blanket Launcher Concept Rapid Grenade Launcher Advanced Remote Datajack Peak State ------------ > --- POWER ------------ Improved Quantum Reactor Antimatter-Quantum Reactor > --- PROPULSION ------- Flying Surge-Biometal Exoskeleton > --- UTILITY ---------- Armored Scrap Engine Advanced Heat Sink Concept Thermoelectric Network Concept Antigrav Storage Unit Experimental Core Analyzer Experimental Kinecellerator Improved Transmission Jammer Concept Cloak Mesh Medium Regenerative Plating Graphene Brace Relay Coupler [NC] > --- WEAPON ----------- Hpw. Ballistic HMG Construct/G > --- INVENTORY -------- Advanced Heat Sink Concept Thermoelectric Network Concept Antigrav Storage Unit Concept Chromion Battery Concept NT7 Matterbank Concept Phase Shift Module Advanced Point Defense System Experimental Hacking Suite Concept Network Penetrator Relay Coupler [Hunter] Relay Coupler [Behemoth] Relay Coupler [Proto] Relay Coupler [Proto] Relay Coupler [Proto] Relay Coupler [Proto] Concept Matter Streamer Crosscalibrator Transdimensional Reconstructor Concept Lightning Penetrator Concept Heavy Railcannon Concept EMP Blanket Launcher Concept Rapid Grenade Launcher Concept Smart ZDS Advanced Remote Datajack [Rating: 230] Favorites ----------- Power Constructs Engine Ion Engine Power Core Micro Nuclear Core Reactor Constructs Propulsion Constructs Treads Light Treads Leg Potential Leg Wheel Armored Wheel Hover Unit Concept Combat Aerolev Unit Flight Unit Constructs Utility Relay Coupler [Swarmer] Device Armored Scrap Engine Storage Huge Storage Unit Processor Experimental Core Analyzer Hackware Relay Coupler [Swarmer] Protection Layered Light Armor Plating Weapon Constructs Energy Gun High-powered Shock Rifle Energy Cannon Constructs Ballistic Gun Assault Rifle Ballistic Cannon AWS/Autocannon Launcher Concept Rapid Grenade Launcher Special Weapon Advanced Remote Datajack Impact Weapon Power Maul Slashing Weapon Ionic Axe Piercing Weapon Kinetic Spear Special Melee Weapon Datajack Build | -11 -10 -10 -9 -9 -9 -8 -8 -8 -8 -8 -7 -7 -7 -7 -7 -5 -5 -5 -5 -5 -5 -4 -4 -4 -4 -3 -3 -3 -3 -2 -2 -2 -2 -2 -2 ------- Run | Yrd Mat Min Mat Min Exi Min Mat Gar Mat Gar Fac Gar Fac Sto Rec Fac Was Fac Gar Fac Gar Fac Was Fac Gar Res Gar Res Gar Res Gar Res Tes Frg Gar Slots Evolved 16 | . . . 2 . . . 2 . . . 2 . . . . 4 . . . . . 2 . . . 2 . . . 2 . . . . . Power 1 | . . . . . . . . . . . . . . . . . . . . . . 1 . . . . . . . . . . . . . Propulsion 4 | . . . . . . . . . . . 1 . . . . 2 . . . . . . . . . . . . . 1 . . . . . Utility 10 | . . . 1 . . . 2 . . . 1 . . . . 2 . . . . . 1 . . . 2 . . . 1 . . . . . Weapon 1 | . . . 1 . . . . . . . . . . . . . . . . . . . . . . . . . . . . . . . . Parts Attached 262 | 8 8 1 9 2 7 2 10 4 3 9 3 20 9 10 3 7 . 3 9 . 10 9 . 5 10 7 12 . 1 2 19 7 10 37 6 Power 29 | 1 2 1 2 1 . 2 . . 1 1 1 1 1 1 1 1 . . . . 1 1 . . . 1 2 . . 1 2 . . 3 1 Engine 12 | 1 2 1 2 1 . 1 . . . . 1 . 1 . 1 . . . . . . . . . . 1 . . . . . . . . . Core 7 | . . . . . . 1 . . 1 1 . 1 . 1 . 1 . . . . . 1 . . . . . . . . . . . . . Reactor 10 | . . . . . . . . . . . . . . . . . . . . . 1 . . . . . 2 . . 1 2 . . 3 1 Propulsion 18 | 2 1 . . . 2 . . . . . 1 6 1 2 . . . . . . . . . . . . . . . . 1 . . 2 . Treads 5 | 2 1 . . . . . . . . . . 2 . . . . . . . . . . . . . . . . . . . . . . . Leg 4 | . . . . . 2 . . . . . 1 . . . . . . . . . . . . . . . . . . . 1 . . . . Wheel 7 | . . . . . . . . . . . . 4 1 2 . . . . . . . . . . . . . . . . . . . . . Hover 2 | . . . . . . . . . . . . . . . . . . . . . . . . . . . . . . . . . . 2 . Flight . | . . . . . . . . . . . . . . . . . . . . . . . . . . . . . . . . . . . . Utility 145 | 2 2 . 2 1 1 . 8 4 2 3 1 8 5 5 2 5 . 1 7 . 7 5 . 4 8 2 7 . 1 1 14 4 5 27 1 Device 57 | 1 1 . 1 1 . . 1 2 . 1 1 . 3 2 1 1 . 1 1 . 4 4 . 1 3 2 1 . . 1 7 1 1 14 . Storage 14 | 1 1 . . . . . 1 1 1 . . . . 1 . 1 . . . . . . . . . . . . . . 1 1 2 3 . Processor 11 | . . . . . 1 . 1 . . . . 1 1 . . . . . 1 . . . . . 1 . . . . . 3 . 1 1 . Hackware 36 | . . . . . . . 1 1 . 1 . 6 . . . 3 . . 2 . 3 1 . 1 4 . 5 . 1 . 2 2 . 2 1 Protection 27 | . . . 1 . . . 4 . 1 1 . 1 1 2 1 . . . 3 . . . . 2 . . 1 . . . 1 . 1 7 . Artifact . | . . . . . . . . . . . . . . . . . . . . . . . . . . . . . . . . . . . . Weapon 70 | 3 3 . 5 . 4 . 2 . . 5 . 5 2 2 . 1 . 2 2 . 2 3 . 1 2 4 3 . . . 2 3 5 5 4 Energy Gun 7 | 1 . . . . . . . . . 1 . . . . . . . . . . 1 . . . 1 . . . . . . 1 1 . 1 Energy Cannon 9 | . . . 1 . . . . . . . . . 1 . . . . 1 . . . . . . 1 2 . . . . 1 . 2 . . Ballistic Gun 17 | 2 2 . 2 . 1 . . . . 4 . 3 . . . 1 . . . . . . . . . . . . . . . . . 1 1 Ballistic Cannon 10 | . . . . . 2 . 1 . . . . 1 1 . . . . . . . . . . . . 1 1 . . . . . 2 . 1 Launcher 6 | . . . . . . . . . . . . . . . . . . . 1 . . . . 1 . . 1 . . . . . . 2 1 Special Weapon 10 | . 1 . 2 . . . . . . . . 1 . . . . . 1 1 . 1 1 . . . 1 . . . . . 1 . . . Impact Weapon 2 | . . . . . . . . . . . . . . 1 . . . . . . . . . . . . . . . . . 1 . . . Slashing Weapon 6 | . . . . . . . 1 . . . . . . 1 . . . . . . . 2 . . . . . . . . . . . 2 . Piercing Weapon 2 | . . . . . . . . . . . . . . . . . . . . . . . . . . . 1 . . . 1 . . . . Special Melee Weapon 1 | . . . . . 1 . . . . . . . . . . . . . . . . . . . . . . . . . . . . . . Unidentified Prototypes 44 | . . . 2 1 . . . . . . . . . . 1 . . . . . . 2 . . . 2 2 . . . 10 1 9 14 . Corrupted Parts 2 | . . . . . . . . . . . . . . . . . . . . . 2 . . . . . . . . . . . . . . System Corruption 9 | . . . . . . . . . . . . . . . . . . . . . 9 . . . . . . . . . . . . . . Parts Lost 65 | . . . . . . . 1 3 . . . 5 1 2 1 . . . 5 . 6 2 . 5 6 . 3 . 1 . 4 . . 16 4 Power 15 | . . . . . . . . 1 . . . . . 1 1 . . . . . 1 1 . 1 1 . 2 . . . 1 . . 5 . Propulsion 4 | . . . . . . . . . . . . 1 . 1 . . . . 1 . 1 . . . . . . . . . . . . . . Utility 33 | . . . . . . . 1 2 . . . 3 1 . . . . . 2 . 3 . . 3 3 . 1 . 1 . 3 . . 8 2 Weapon 13 | . . . . . . . . . . . . 1 . . . . . . 2 . 1 1 . 1 2 . . . . . . . . 3 2 Highest Loss Streak 5 | . . . . . . . 1 1 . . . 1 1 1 1 . . . 3 . 3 1 . 3 2 . 1 . 1 . 3 . . 5 3 To Critical Strikes 5 | . . . . . . . . . . . . 1 . . . . . . 1 . . . . . 2 . 1 . . . . . . . . Average Backups 18 | 4 12 15 14 14 12 11 12 12 12 12 12 14 19 19 19 20 21 21 21 23 23 23 23 22 22 24 24 25 24 24 24 24 24 24 22 Power . | . . . . 1 1 1 1 . 1 1 1 . 1 1 1 2 3 3 3 2 . 1 1 . . . . . . . . 1 1 . . Propulsion 1 | . 2 2 2 2 1 1 1 2 1 1 1 2 4 4 3 1 1 1 . . . . . . . . . . . . . . . . . Utility 11 | 1 5 7 5 5 5 4 4 4 4 5 6 7 8 9 10 10 11 10 13 17 17 18 20 19 19 20 20 21 20 20 20 18 17 17 16 Weapon 3 | 1 2 5 5 5 3 4 4 4 5 3 3 2 4 5 4 6 6 6 3 3 3 2 2 1 2 3 3 3 3 4 2 4 5 5 3 Tool/Special . | . . . . . . . . . . . . . . . . . . . . . . . . . . . . . . . . . . . . Unused Backups 74 | . 4 . 3 1 5 . 5 . 1 2 . 5 . 1 1 3 . 1 3 1 1 2 . 1 2 . 2 . . . 4 2 8 4 12 Power 5 | . . . . . 3 . . . . . . . . . . . . . 1 1 . . . . . . . . . . . . . . . Propulsion 5 | . . . . . 1 . . . 1 . . 1 . . 1 1 . . . . . . . . . . . . . . . . . . . Utility 48 | . 1 . 3 . . . 3 . . 2 . 3 . 1 . 1 . . 1 . 1 1 . 1 2 . 2 . . . 4 1 7 3 11 Weapon 12 | . 1 . . 1 1 . 2 . . . . 1 . . . 1 . 1 1 . . . . . . . . . . . . 1 1 1 . Tool/Special 4 | . 2 . . . . . . . . . . . . . . . . . . . . 1 . . . . . . . . . . . . 1 Average Slot Usage (%) 77 | . 99 100 98 99 74 88 81 78 81 89 98 97 91 81 78 59 70 65 60 70 64 67 66 64 61 69 68 71 66 67 68 68 67 65 53 Engine 4 | . 13 14 11 11 11 10 9 9 7 . 2 2 5 3 2 . . . . . . 2 . . . 3 . . . . . . . . . Core 1 | . . . . . . . . . 1 9 4 4 1 2 4 4 5 5 . . 2 2 5 3 1 . 2 4 1 . . . . . . Reactor 1 | . . . . . . . . . . . . . . . . . . . 4 5 1 . . 1 4 4 3 4 3 6 5 4 4 7 3 Treads 5 | . 27 28 22 22 15 . . . . . . 2 . . . . . . 3 5 1 1 . . . . 1 4 4 4 3 2 . . . Leg 5 | . . . . . 6 22 18 18 18 18 22 11 . . 2 3 5 5 . . . 1 5 4 4 4 1 . . . . . 3 3 . Wheel 2 | . . . . . . . . . . . . 8 23 17 11 . . . . . . . . . . . . . . . . . . . . Device 10 | . 13 14 11 11 7 9 3 1 9 9 13 5 6 12 10 11 11 11 6 5 8 11 10 11 9 9 10 14 14 16 15 12 14 17 23 Storage 7 | . 14 14 11 11 11 11 9 9 9 9 7 9 7 9 11 5 5 5 5 5 5 5 5 5 5 4 4 4 4 4 4 4 4 4 5 Processor 1 | . . . . . 3 1 5 9 2 . . . . . . . . . 4 5 1 . . . 1 . . . . . 6 5 4 4 4 Hackware 13 | . . . . . . . 8 9 18 18 15 23 23 17 11 9 17 17 14 17 17 24 26 21 21 23 23 19 17 17 18 24 24 15 4 Protection 4 | . . . 10 10 11 11 16 13 7 8 7 4 5 1 7 5 5 5 1 5 2 . . 1 . 3 1 4 4 4 . . . 4 . Energy Cannon 1 | . . . . . . . . . . . . . . . 3 3 . . 2 5 1 3 . 2 3 8 9 4 4 8 5 4 3 2 . Ballistic Gun 6 | . 23 28 30 33 1 11 1 1 . 7 15 12 3 . 2 7 11 3 2 5 8 6 . . 2 . . . . . 1 . . . . Ballistic Cannon 2 | . . . . . 1 11 8 7 9 2 . . 7 6 . . . 1 . . . . . 2 1 . 1 4 3 . . . . 1 4 Special Weapon 1 | . 4 . 1 . . . . . . . . 1 . 2 3 1 5 5 . . 1 . 3 . 1 . 1 . 2 4 . 3 3 . . Slashing Weapon 1 | . . . . . . . . 1 . 4 7 5 2 3 . . . . . . . 2 5 4 3 3 . . . . . . . . . Peak Build Rating 230 | 8 9 8 14 23 59 52 75 72 73 74 65 67 62 61 77 99 96 96 105 105 113 114 114 127 136 132 149 149 149 156 163 165 184 230 223 Average Rating 85 | 6 8 8 10 11 17 50 69 68 72 62 64 57 59 56 58 83 96 90 88 102 98 104 112 119 110 122 138 149 143 153 155 160 165 197 197 On Entrance 87 | . 8 8 8 12 12 49 52 72 72 72 57 65 56 58 53 64 96 96 95 105 102 90 107 114 112 108 132 149 149 141 156 163 160 166 173 Naked Turns . | . . . . . . . . . . . . . . . . . . . . . . . . . . . . . . . . . . . . Heaviest Build 153 | 13 30 30 37 37 42 47 101 99 109 109 63 127 124 121 109 109 105 110 118 115 117 114 110 131 132 139 148 140 142 143 150 142 146 153 94 Greatest Support 220 | 40 40 40 40 40 60 60 60 60 60 60 80 95 36 46 44 114 114 114 154 154 188 157 157 157 130 130 153 153 153 153 211 211 211 220 181 Greatest Overweight (x) 22 | . 1 . . . . . 1 1 1 1 . 5 3 4 3 3 . . 1 . 1 1 . 1 1 1 1 . . . . . . . 22 Average Overweight (x) . | . . . . . . . . . 1 . . 1 3 2 2 . . . . . . . . . . . . . . . . . . . . Largest Inventory Capacity 25 | 8 15 15 15 15 15 15 25 15 15 15 15 25 25 25 25 25 25 25 25 25 25 25 25 25 25 25 25 25 25 25 25 25 25 25 25 Average Capacity 20 | 7 13 15 15 15 15 15 15 15 15 15 15 19 25 25 25 25 25 25 25 25 25 25 25 25 25 25 25 25 25 25 25 25 25 25 25 Most Carried 25 | 8 15 15 15 15 15 15 15 15 15 15 15 25 25 25 25 25 24 25 25 25 25 25 25 25 25 25 25 25 25 25 25 25 25 25 25 Average Carried 20 | 4 12 15 14 14 13 14 14 14 14 14 14 18 24 24 24 23 24 24 23 24 24 24 24 23 22 24 24 25 24 24 24 24 24 24 22 Final Capacity 25 | 8 15 15 15 15 15 15 15 15 15 15 15 25 25 25 25 25 25 25 25 25 25 25 25 25 25 25 25 25 25 25 25 25 25 25 25 Final Carried 25 | 8 15 15 15 15 15 15 15 15 15 15 15 25 25 25 25 24 24 24 25 23 25 25 24 24 25 25 25 25 25 24 24 25 25 25 21 Scrap Engine Consumption 339 | . . . . . . . . . . . . . . . 17 12 7 9 36 5 22 37 8 15 29 10 17 . 11 . 18 20 10 46 10 Constructs Created 21 | . . . . . . . . . . . . . . . 2 1 . . 2 . 1 2 . 3 4 . 1 . . . . . 1 3 1 Constructs Modified 117 | . . . . . . . . . . . . . . . 3 3 . 4 16 . 10 12 . 7 9 1 7 . 7 . 11 3 1 20 3 Class Distribution -------------------- 26% | Botlord-Construct 16% | Mutant 15% | Tank 11% | Bothacker-Mutant 10% | Botlord-Mutant 5% | Botlord-Tank 4% | Botlord-Gunner 3% | Scavenger-Mutant Dominant Class ---------------- Mutant | -10/Materials Mutant | -10/Mines Tank | -9/Materials Tank | -9/Mines Mutant | -9/Exiles Tank | -8/Mines Tank | -8/Materials Tank | -8/Garrison Tank | -8/Materials Tank | -8/Garrison Scavenger-Mutant | -7/Factory Bothacker-Mutant | -7/Garrison Botlord-Tank | -7/Factory Bothacker-Mutant | -7/Storage Bothacker-Mutant | -7/Recycling Bothacker-Mutant | -5/Factory Bothacker-Construct | -5/Waste Bothacker-Construct | -5/Factory Botlord-Construct | -5/Garrison Botlord-Construct | -5/Factory Botlord-Construct | -5/Garrison Botlord-Construct | -4/Factory Botlord-Construct | -4/Waste Botlord-Construct | -4/Factory Botlord-Construct | -4/Garrison Botlord-Mutant | -3/Research Botlord-Construct | -3/Garrison Botlord-Construct | -3/Research Botlord-Construct | -3/Garrison Botlord-Tank | -2/Research Botlord-Mutant | -2/Garrison Botlord-Construct | -2/Research Botlord-Construct | -2/Testing Botlord-Mutant | -2/Protoforge Botlord-Gunner | -2/Garrison Resources | -11 -10 -10 -9 -9 -9 -8 -8 -8 -8 -8 -7 -7 -7 -7 -7 -5 -5 -5 -5 -5 -5 -4 -4 -4 -4 -3 -3 -3 -3 -2 -2 -2 -2 -2 -2 ----------- Run | Yrd Mat Min Mat Min Exi Min Mat Gar Mat Gar Fac Gar Fac Sto Rec Fac Was Fac Gar Fac Gar Fac Was Fac Gar Res Gar Res Gar Res Gar Res Tes Frg Gar Matter Collected 12241 | 325 334 249 393 135 . 246 171 20 65 352 88 711 378 806 132 130 17 51 524 24 605 182 . 389 424 179 535 . 332 . 616 245 233 2700 650 Remotely . | . . . . . . . . . . . . . . . . . . . . . . . . . . . . . . . . . . . . Salvage Created 19808 | 121 580 225 193 105 . 779 654 231 234 1155 67 979 351 833 582 220 . 164 1675 121 653 680 . 947 804 96 948 . 965 . 865 247 242 3588 504 Parts 915 | 18 44 11 7 7 . 35 52 7 9 70 5 30 17 40 19 2 . 4 57 7 32 27 . 45 22 10 27 . 42 . 34 19 15 169 32 Haulers Intercepted 6 | . 1 . . . . . . . 1 . . . . 2 . 1 . 1 . . . . . . . . . . . . . . . . . Recyclers Shooed 8 | . . . . 2 . . 1 . . . . . . . . . . . . . . . . 5 . . . . . . . . . . . Parts Field Recycled . | . . . . . . . . . . . . . . . . . . . . . . . . . . . . . . . . . . . . Retrieved Matter . | . . . . . . . . . . . . . . . . . . . . . . . . . . . . . . . . . . . . Parts Self-Destructed . | . . . . . . . . . . . . . . . . . . . . . . . . . . . . . . . . . . . . Prevented . | . . . . . . . . . . . . . . . . . . . . . . . . . . . . . . . . . . . . Kills | -11 -10 -10 -9 -9 -9 -8 -8 -8 -8 -8 -7 -7 -7 -7 -7 -5 -5 -5 -5 -5 -5 -4 -4 -4 -4 -3 -3 -3 -3 -2 -2 -2 -2 -2 -2 ------- Run | Yrd Mat Min Mat Min Exi Min Mat Gar Mat Gar Fac Gar Fac Sto Rec Fac Was Fac Gar Fac Gar Fac Was Fac Gar Res Gar Res Gar Res Gar Res Tes Frg Gar Combat Hostiles Destroyed 367 | . 14 5 2 4 . 18 26 13 11 29 1 10 10 12 6 2 . 1 19 2 12 8 . 16 11 2 18 . 13 . 12 4 7 63 16 Melee 15 | . . . . . . . . . . 1 . 3 . 1 1 . . . 1 . . 2 . 3 3 . . . . . . . . . . Guns 104 | . 14 5 2 4 . 13 2 . . 18 1 6 4 . 3 2 . . 10 . 9 1 . 1 . . . . . . 5 3 1 . . Cannons 158 | . . . . . . 3 24 13 10 10 . . 6 11 . . . . 1 2 2 2 . 1 5 2 15 . 7 . 5 1 1 29 8 AOE 54 | . . . . . . 2 . . 1 . . 1 . . . . . . 3 . 1 . . 10 . . . . 6 . 2 . 5 16 7 Classes Destroyed 28 | 1 6 . 2 1 . . 3 1 1 2 . . . . 2 . . . 1 . . . . . . . 3 . . . . . 1 4 . Worker 10 | . 1 . . . . . . . . . . . 1 2 . . . . . . . . . 2 . . . . . . . . . 4 . Builder 5 | . . . . . . . . . 1 . . . . . . . . . . . . . . 3 . . . . . . . . . 1 . Tunneler 6 | 6 . . . . . . . . . . . . . . . . . . . . . . . . . . . . . . . . . . . Hauler 6 | . 1 . . . . . . . 1 . . . . 2 . 1 . 1 . . . . . . . . . . . . . . . . . Recycler 15 | . 1 1 1 . . 1 . . . . . . 1 4 2 . . . . . . 1 . 3 . . . . . . . . . . . Mechanic 6 | . . . . . . . 1 . . 2 . . . 1 . . . . . . . . . 1 . . . . . . . . . 1 . Operator 5 | . 1 . . . . . 2 . . . . . . . . . . . . . . . . . . 1 . . . . . . 1 . . Drone 5 | . . . . . . . . . . . . . . . . . . . . . . . . . . . . . . . . . . 5 . Watcher 7 | . . . 1 . . . 3 . 1 . . . . . . . . . 1 . 1 . . . . . . . . . . . . . . Swarmer 84 | . 6 3 . 3 . 8 11 2 4 9 . 2 1 . . . . . 7 . 1 . . 4 . 2 3 . 3 . . . 5 3 7 Cutter 6 | . . . . . . . . . . . . . . . . . . . 2 . . . . . . . . . . . . . . . 4 Saboteur 1 | . . . . . . . . . . . . . . . . . . . . . . . . . . . 1 . . . . . . . . Grunt 100 | . 8 2 1 . . 12 6 5 4 7 . 3 1 5 . 2 . . 6 . 4 2 . 1 7 . 6 . 7 . 5 1 . 5 . Brawler 11 | . . . . . . . . . . 1 . 2 . . . . . . . . . . . . . . . . 1 . 1 . . 6 . Duelist 3 | . . . . 1 . . . . . 1 . . . . . . . . . . . . . . . . . . . . . . . 1 . Researcher 1 | . . . . . . . . . . . . . . . . . . . . . . . . . . . . . . . . . 1 . . Sentry 54 | . . . 1 . . . 6 2 3 2 1 2 4 4 3 . . 1 4 1 3 2 . 3 . . 2 . 1 . . . . 6 3 Demolisher 2 | . . . . . . . . 1 . . . . . . . . . . . . 1 . . . . . . . . . . . . . . Specialist 6 | . . . . . . . 1 . . 2 . . . . . . . . . . . . . 1 . . 1 . . . . . 1 . . Hunter 27 | . . . . . . . 2 3 . 2 . 1 1 1 . . . . . . 1 2 . 2 3 . 2 . . . . . . 6 1 Programmer 43 | . . . . . . . . . . 5 . . 3 2 . . . . 1 1 3 2 . 5 1 . 1 . 2 . 4 3 1 8 1 Behemoth 3 | . . . . . . . . . . . . . . . . . . . . . . . . . . . 1 . . . 2 . . . . Decapitator 13 | . . . . . . . . . . . . . . . . . . . . . . . . . . . . . . . . . . 13 . Immortal 3 | . . . . . . . . . . . . . . . . . . . . . . . . . . . . . . . . . . 3 . Striker 1 | . . . . . . . . . . . . . . . . . . . . . . . . . . . 1 . . . . . . . . Alpha 7 2 | . . . . . . . . . . . . . . . . . . . . . . . . . . . . . . . . . . 2 . V-Series 6 | . . . . . . . . . . . . . . . . . . . . . . . . . . . . . . . . . . 6 . Scientist 2 | . . . . . . . . . . . . . . . 2 . . . . . . . . . . . . . . . . . . . . Scrapper 3 | . . . . . . . . . . . . . . . 3 . . . . . . . . . . . . . . . . . . . . Tinkerer 1 | . . . . . . . . . . . . . . . . . . . . . . . . . . . . . . . . . . 1 . Best Kill Streak 12 | 2 3 3 2 3 . 8 6 6 8 5 1 3 2 4 3 2 . 1 9 2 2 4 . 12 3 2 6 . 5 . 4 2 6 11 9 Combat Bots Only 10 | . 3 3 1 3 . 8 6 6 6 5 1 3 2 3 2 2 . 1 9 2 2 2 . 9 3 2 6 . 5 . 4 2 5 10 9 Max Kills in Single Turn 8 | 1 2 1 1 1 . 2 1 1 1 3 1 1 1 2 1 1 . 1 2 1 1 1 . 8 1 1 1 . 3 . 1 1 3 3 4 Gunslinging 1 | . 1 . . . . . . . . . . . . . . . . . . . . . . . . . . . . . . . . . . Exploded 4 | . . . . . . 2 . . 1 . . 1 . . . . . . 2 . 1 . . 3 . . . . 3 . 1 . 3 3 4 Melee 1 | . . . . . . . . . . 1 . 1 . 1 1 . . . 1 . . 1 . 1 1 . . . . . . . . . . Uniques/NPCs Destroyed . | . . . . . . . . . . . . . . . . . . . . . . . . . . . . . . . . . . . . Combat | -11 -10 -10 -9 -9 -9 -8 -8 -8 -8 -8 -7 -7 -7 -7 -7 -5 -5 -5 -5 -5 -5 -4 -4 -4 -4 -3 -3 -3 -3 -2 -2 -2 -2 -2 -2 -------- Run | Yrd Mat Min Mat Min Exi Min Mat Gar Mat Gar Fac Gar Fac Sto Rec Fac Was Fac Gar Fac Gar Fac Was Fac Gar Res Gar Res Gar Res Gar Res Tes Frg Gar Hostile Shots Fired 2368 | . 56 16 4 21 . 32 70 58 48 64 69 119 162 202 36 4 . 6 149 12 85 71 . 217 136 9 99 . 58 . 138 11 34 303 79 Missed 741 | . 12 5 1 4 . 13 16 14 13 23 23 41 71 69 16 3 . 1 32 4 23 22 . 82 39 1 37 . 14 . 50 5 14 60 33 Hits 1627 | . 44 11 3 17 . 19 54 44 35 41 46 78 91 133 20 1 . 5 117 8 62 49 . 135 97 8 62 . 44 . 88 6 20 243 46 Melee 65 | . . . . . . . . . . . . 3 . . . . . . 20 . . . . . 3 . . . . . . . . 32 7 Projectile 1562 | . 44 11 3 17 . 19 54 44 35 41 46 75 91 133 20 1 . 5 97 8 62 49 . 135 94 8 62 . 44 . 88 6 20 211 39 AOE 32 | . . . . . . . . 5 . . . . . . . . . . . . 17 . . . 3 . . . . . . . . 6 1 Critical Strikes 115 | . . . . . . . 3 1 . 1 . 7 3 5 1 . . 1 13 3 4 2 . 5 8 . 6 . . . 7 . 2 40 3 Actively Blocked 52 | . . . . . . . . . . . . . . . . . . . . . . . . . . . . . . . 7 . 2 40 3 Damage Taken 32838 | . 434 119 41 170 . 288 670 776 456 488 318 1073 709 892 194 20 100 131 2368 200 2305 1004 . 2727 2225 223 1709 . 1005 . 2305 146 576 7910 1256 Core 3606 | . 90 9 . 33 . 24 68 42 108 55 48 138 80 174 . . . . 204 53 308 84 . 252 206 . 93 . 85 . 133 49 59 1022 189 Absorbed by Shields 950 | . . . . . . . . . . . . 10 64 425 80 . . . 33 . . . . . . . . . . . . . . 338 . Redirected to Shielding 119 | . . . . . . . . . . . . . . . . . . . . . . . . . . . . . . . . . . 119 . Ignored by Resistances 215 | . . . . . . . . . 51 64 78 22 . . . . . . . . . . . . . . . . . . . . . . . Regen/Repaired (Parts) 11196 | . 14 . . . . . . . . . . . 52 70 5 . . 127 939 2 560 842 51 1213 236 122 737 . 667 . 1212 587 25 3313 422 Core Remaining (%) 64 | 100 . 60 . . . 85 . . . 50 . . . . 37 . . . . . 43 . . . 52 . . . 86 . . . . . . Volleys Fired 1022 | 14 56 17 22 9 6 24 7 . . 24 7 42 48 48 10 8 4 . 50 4 66 33 8 28 50 18 63 . 44 . 69 20 33 161 29 Largest 3 | 2 2 2 3 3 1 1 1 . . 2 2 2 1 1 2 2 1 . 2 2 3 2 1 2 3 2 3 . 2 . 3 2 2 2 1 Hottest 281 | 40 100 40 100 60 33 33 37 . . 60 56 65 80 65 148 101 5 . 134 176 241 176 10 175 253 168 281 . 146 . 259 146 132 230 110 Shots Fired 1754 | 28 97 34 50 27 6 83 75 46 35 82 14 72 48 48 25 15 4 . 80 7 109 41 8 33 80 21 139 . 67 . 123 27 39 163 28 Gun 726 | 28 82 34 43 27 . 59 14 . . 61 14 59 16 4 18 14 . . 58 3 69 25 . 18 . . . . . . 37 7 10 17 9 Cannon 847 | . . . . . 6 24 61 46 35 21 . 4 32 41 7 . . . 13 4 19 12 . 7 75 18 122 . 57 . 74 10 25 117 17 Launcher 39 | . . . . . . . . . . . . . . . . . . . 2 . . . . 5 . . . . 3 . 2 . 3 22 2 Special 142 | . 15 . 7 . . . . . . . . 9 . 3 . 1 4 . 7 . 21 4 8 3 5 3 17 . 7 . 10 10 1 7 . Kinetic 914 | 28 82 34 43 27 6 83 75 46 35 63 14 63 43 41 18 14 . . 27 . 16 17 . 2 15 5 29 . . . 18 . . 51 19 Thermal 498 | . 15 . 7 . . . . . . . . . 1 . 7 . . . 11 7 64 8 . 5 3 13 93 . 57 . 88 17 35 67 . Explosive 34 | . . . . . . . . . . . . . . . . . . . . . . . . 5 . . . . 3 . 2 . 3 19 2 Electromagnetic 188 | . . . . . . . . . . 19 . . 4 4 . . . . 35 . 8 12 . 18 57 . . . . . 5 . . 19 7 Robot Hit Streak 26 | 8 12 13 9 2 . 7 15 11 12 15 12 14 10 11 7 9 4 . 24 6 15 8 3 10 6 4 26 . 10 . 11 7 5 22 4 Robot Miss Streak 10 | 1 2 5 2 2 . 2 2 1 3 5 1 4 4 2 3 1 2 . 6 1 3 2 1 5 6 2 4 . 3 . 10 2 1 4 2 Penetration Max 1 | . . . . . . 1 . . . . . 1 . 1 . . . . . . 1 . . . . . . . . . 1 . . 1 . Secondary Targets 4 | . 2 . . 2 . . . . . . . . . . . . . . . . . . . . . . . . . . . . . . . Max Gunslinging Chain 1 | . 1 . . 1 . . . . . . . . . . . . . . . . . . . . . . . . . . . . . . . Autonomous 288 | . . . . . . 59 69 46 35 58 . . . . 9 . . . 12 . . . . . . . . . . . . . . . . Shots Hit Robots 1224 | 20 57 23 33 14 4 56 60 40 23 57 13 75 36 54 23 11 2 4 76 7 72 37 5 37 57 7 83 . 40 . 66 17 11 87 17 Core Hits 590 | 6 28 10 8 4 . 28 26 10 10 31 3 33 13 19 9 5 . . 32 2 23 14 . 42 19 3 34 . 26 . 33 4 16 77 22 Critical Kills 31 | . 2 . . 1 . 1 . . . . . . 1 . . . . . 1 1 3 1 . . . . 3 . . . . . . 17 . Critical Parts Destroyed 24 | . 1 . . . . 2 . . . 1 . . . 1 2 . . 1 4 1 6 3 . . . . . . . . . . . 2 . Critical Strikes 98 | . 3 . . 1 . 3 2 1 2 3 . 5 4 6 2 . . 1 5 2 10 9 . 6 2 . 3 . 1 . 3 . . 23 1 Burn 2 | . . . . . . . . . . . . . . . . . . . . . . . . . . . . . . . 2 . . . . Meltdown 16 | . . . . . . . . . . . . . . . . . . . . . . 1 . . . . 3 . . . . . . 12 . Destroy 39 | . 3 . . 1 . 3 . . . 1 . . 1 . . . . . 3 2 9 5 . . . . . . . . . . . 11 . Blast 16 | . . . . . . . 2 1 2 2 . . 3 4 . . . . . . . . . . 1 . . . . . . . . . 1 Corrupt 5 | . . . . . . . . . . . . . . . . . . . . . . . . 4 . . . . . . 1 . . . . Smash 7 | . . . . . . . . . . . . . . 1 2 . . 1 2 . 1 . . . . . . . . . . . . . . Sever 12 | . . . . . . . . . . . . 5 . 1 . . . . . . . 3 . 2 1 . . . . . . . . . . Impale 1 | . . . . . . . . . . . . . . . . . . . . . . . . . . . . . 1 . . . . . . Melee Attacks 192 | . . . . . 4 . 1 2 . 13 1 43 1 22 8 . . 4 27 1 1 10 . 24 24 2 . . 4 . . . . . . Impact 48 | . . . . . . . . . . . . . . 7 8 . . 4 27 1 1 . . . . . . . . . . . . . . Slashing 135 | . . . . . . . 1 2 . 12 1 43 1 15 . . . . . . . 10 . 24 24 2 . . . . . . . . . Piercing 4 | . . . . . . . . . . . . . . . . . . . . . . . . . . . . . 4 . . . . . . Sneak Attacks 28 | . . . . . 4 . 1 . . 1 . 1 . 10 3 . . 1 1 1 1 . . 3 . 1 . . . . . . . . . Combat Hostiles 5 | . . . . . . . . . . . . 1 . . 2 . . . 1 1 . . . . . . . . . . . . . . . Follow-up Attacks . | . . . . . . . . . . . . . . . . . . . . . . . . . . . . . . . . . . . . Damage Inflicted 65903 | 229 744 286 424 195 . 1873 4151 3091 2572 2663 238 2423 2186 3501 833 245 . 214 3006 327 1867 1299 . 3572 2180 207 2836 . 2680 . 4007 529 1078 14497 1950 Guns 11653 | 229 744 282 424 161 . 1519 354 . . 1126 238 812 271 48 281 199 . . 1225 89 1029 395 . 438 . . . . . . 1195 305 159 . 130 Cannons 35442 | . . . . . . 244 3651 3077 2061 1267 . 66 1859 2272 105 . . . 149 126 609 523 . 114 1394 110 2836 . 1304 . 2054 223 268 10073 1057 Explosions 10872 | . . . . . . 86 . . 497 98 . . 53 34 . . . . 291 . 158 . . 2189 109 . . . 1010 . 758 . 567 4259 763 Melee 7421 | . . . . . . . 56 . . 172 . 1545 . 1133 447 . . 192 1341 112 71 381 . 831 677 97 . . 366 . . . . . . Ramming 515 | . . 4 . 34 . 24 90 14 14 . . . 3 14 . 46 . 22 . . . . . . . . . . . . . 1 84 165 . Kinetic 32424 | 229 744 282 424 161 . 1763 4005 3077 2061 2284 238 878 2059 2272 281 199 . . 605 . 152 238 . 24 331 68 382 . . . 522 . . 8088 1057 Thermal 12271 | . . . . . . 86 . . 497 98 . . 53 . 105 . . . 231 215 1418 157 . 291 149 42 2454 . 1304 . 2626 528 427 1590 . Explosive 8842 | . . . . . . . . . . . . . . 34 . . . . . . 158 . . 1988 . . . . 1010 . 758 . 567 3564 763 Electromagnetic 4430 | . . . . . . . . . . 109 . . 71 48 . . . . 829 . 68 523 . 438 1023 . . . . . 101 . . 1090 130 Impact 2775 | . . . . . . . . . . . . . . 612 447 . . 192 1341 112 71 . . . . . . . . . . . . . . Slashing 4280 | . . . . . . . 56 . . 172 . 1545 . 521 . . . . . . . 381 . 831 677 97 . . . . . . . . . Piercing 366 | . . . . . . . . . . . . . . . . . . . . . . . . . . . . . 366 . . . . . . Highest Corruption 27 | . . . 2 2 2 2 . . 2 3 . 3 3 1 1 . 6 6 6 7 19 4 11 14 18 . 1 1 1 . 5 5 9 27 27 Average Corruption 6 | . . . 2 2 2 2 . . 2 2 . 2 1 1 1 . 6 6 6 6 15 3 10 12 16 . 1 1 1 . 4 5 5 16 27 Corruption Purged 14 | . . . . . . . . . . . . . 5 . . . . . . . . . . . . . . . . . . . 7 2 . Corruption Blocked . | . . . . . . . . . . . . . . . . . . . . . . . . . . . . . . . . . . . . Effects 469 | . . . 3 13 16 7 . . 1 28 . 21 4 13 5 . 3 10 40 7 56 8 4 24 62 . 11 . 1 . 7 11 12 74 28 Message Errors 130 | . . . . 3 7 3 . . . 9 . 4 . 3 1 . . 3 13 4 9 5 . 3 18 . 3 . . . 1 5 2 20 14 Matter Fused 108 | . . . 2 2 1 . . . . 7 . 4 2 4 2 . 1 3 12 1 19 3 1 3 16 . . . . . 2 2 4 13 4 Heat Flow Errors 59 | . . . 1 3 2 1 . . . 3 . 3 . 1 1 . 2 . 2 . 6 . 1 6 6 . 2 . . . 3 2 3 7 4 Energy Discharges 55 | . . . . 3 2 1 . . . 4 . 4 1 3 . . . 2 3 . 4 . 1 5 10 . 1 . . . 1 . . 7 3 Parts Rejected 6 | . . . . . . . . . . . . . . . 1 . . . 1 . . . . . . . 1 . . . . . . 2 1 Parts Fused 7 | . . . . . 1 . . . 1 . . . . . . . . 2 . . . . . . . . . . 1 . . . . 2 . Data Loss (minor) 49 | . . . . 1 2 2 . . . 4 . 3 1 1 . . . . 6 . 8 . . 2 4 . 1 . . . . 1 3 10 . Data Loss (major) 19 | . . . . . 1 . . . . 1 . . . . . . . . 1 . 3 . . 1 4 . 3 . . . . . . 4 1 Misfires 3 | . . . . . . . . . . . . 2 . . . . . . . . . . . . 1 . . . . . . . . . . Alerts 13 | . . . . 1 . . . . . . . . . 1 . . . . 1 1 3 . . 2 . . . . . . . 1 . 3 . Misdirections 5 | . . . . . . . . . . . . . . . . . . . . . 1 . 1 . 1 . . . . . . . . 2 . Weapon Failures 15 | . . . . . . . . . . . . 1 . . . . . . 1 1 3 . . 2 2 . . . . . . . . 4 1 Overload Shots . | . . . . . . . . . . . . . . . . . . . . . . . . . . . . . . . . . . . . Overflow Damage 6427 | . . . . . . 13 623 459 320 268 . 97 333 605 204 . . 87 422 62 51 47 . 376 15 . 32 . 77 . 15 37 67 1975 242 Projectiles 4216 | . . . . . . 13 607 459 246 204 . . 333 299 . . . . . . 50 . . . . . 32 . 20 . 15 37 . 1690 211 Explosions 560 | . . . . . . . . . 74 7 . . . . . . . . 3 . 1 . . 138 . . . . 57 . . . 3 246 31 Melee 1651 | . . . . . . . 16 . . 57 . 97 . 306 204 . . 87 419 62 . 47 . 238 15 . . . . . . . 64 39 . Knockbacks 58 | . . . . . . 1 5 7 5 3 . . 2 12 . . . . 1 1 . . . . . . 2 . . . . . 1 18 . Impact 7 | . . . . . . 1 . . . . . . . 2 . . . . 1 1 . . . . . . . . . . . . 1 1 . Kinetic 48 | . . . . . . . 4 7 5 3 . . 2 9 . . . . . . . . . . . . 2 . . . . . . 16 . Secondary 3 | . . . . . . . 1 . . . . . . 1 . . . . . . . . . . . . . . . . . . . 1 . Self-Inflicted Damage 912 | . . . . . . 19 . . 101 . . . 1 7 . . . . 29 . . . . 160 19 . . . 9 . . . . 450 117 Shots 18 | . . . . . . 1 . . 2 . . . . . . . . . 1 . . . . 2 1 . . . 1 . . . . 7 3 Rammed 10 | . . 2 . 5 . . . . . . . . 1 1 . . . . . . . . . . . . . . . . . 1 . . . Targets Rammed 33 | . . 2 . 5 . 1 10 3 2 . . . 1 1 . 2 . 1 . . . 1 . . . . . . . . . 1 1 2 . Kicked 23 | . . . . . . 1 10 3 2 . . . . . . 2 . 1 . . . 1 . . . . . . . . . . 1 2 . Crushed . | . . . . . . . . . . . . . . . . . . . . . . . . . . . . . . . . . . . . Highest Temperature 729 | . 80 2 237 230 206 111 7 8 . 195 . 192 134 272 264 103 165 . 246 258 729 200 226 218 323 210 143 . . . 307 174 170 215 226 Average Temperature 89 | . 23 2 43 64 89 31 7 8 . 70 . 71 47 31 83 48 97 . 60 106 170 57 124 81 113 124 36 . . . 128 74 77 70 86 Received Heat Transfer 4360 | . 168 36 9 12 . 126 189 189 135 135 96 300 158 258 118 9 . 18 399 45 211 145 . 72 244 27 232 . 105 . 324 . . 555 45 Effects 15 | . . . . . . . . . . . . . . . . . . . . . 15 . . . . . . . . . . . . . . Shutdowns 3 | . . . . . . . . . . . . . . . . . . . . . 3 . . . . . . . . . . . . . . Energy Bleed 4 | . . . . . . . . . . . . . . . . . . . . . 4 . . . . . . . . . . . . . . Interference 5 | . . . . . . . . . . . . . . . . . . . . . 5 . . . . . . . . . . . . . . Matter Decay 1 | . . . . . . . . . . . . . . . . . . . . . 1 . . . . . . . . . . . . . . Damage (minor) 1 | . . . . . . . . . . . . . . . . . . . . . 1 . . . . . . . . . . . . . . Damage (core) 1 | . . . . . . . . . . . . . . . . . . . . . 1 . . . . . . . . . . . . . . Siege Activations . | . . . . . . . . . . . . . . . . . . . . . . . . . . . . . . . . . . . . Martial Activations . | . . . . . . . . . . . . . . . . . . . . . . . . . . . . . . . . . . . . Shielding Activations . | . . . . . . . . . . . . . . . . . . . . . . . . . . . . . . . . . . . . Robots Disrupted 1 | . . . . . . . . . . . . . . . . . . . . . . . . . 1 . . . . . . . . . . Combat Hostiles 1 | . . . . . . . . . . . . . . . . . . . . . . . . . 1 . . . . . . . . . . Robots Corrupted 31 | . . . . . . . . . . . . . . 3 2 . . 2 9 . . 2 . 1 3 . . . . . . . 1 7 1 Combat Hostiles 21 | . . . . . . . . . . . . . . . 2 . . 1 4 . . 2 . 1 3 . . . . . . . . 7 1 Parts Fried 48 | . . . . . . . . . . 1 . . . 1 2 . . 3 15 . . 4 . 2 10 . . . . . . . 2 7 1 Impact Corruptions 31 | . . . . . . . 2 . . . . . . 7 4 . . 2 11 2 . . . . . . . . . . . . 2 1 . Robots Melted 16 | . . . . . . . . . . . . . . . . . . . . . . 1 . . . . 3 . . . . . . 12 . Combat Hostiles 16 | . . . . . . . . . . . . . . . . . . . . . . 1 . . . . 3 . . . . . . 12 . Parts Melted 50 | . . . . . . . . . . . . . . . . 2 . . . . 1 1 . . . . 5 . 3 . 2 . . 36 . Heat Transferred 9954 | . . . . . . 100 . . 300 100 . . 50 . 187 . . . 311 222 1519 222 . 200 128 37 2030 . 1110 . 2183 370 148 737 . Parts Sabotaged . | . . . . . . . . . . . . . . . . . . . . . . . . . . . . . . . . . . . . Parts Stolen . | . . . . . . . . . . . . . . . . . . . . . . . . . . . . . . . . . . . . Parts Stripped . | . . . . . . . . . . . . . . . . . . . . . . . . . . . . . . . . . . . . Power Chain Reactions 4 | . . . . . . . . . . 1 . . . . . . . . 2 . . . . . 1 . . . . . . . . . . Alert | -11 -10 -10 -9 -9 -9 -8 -8 -8 -8 -8 -7 -7 -7 -7 -7 -5 -5 -5 -5 -5 -5 -4 -4 -4 -4 -3 -3 -3 -3 -2 -2 -2 -2 -2 -2 ------- Run | Yrd Mat Min Mat Min Exi Min Mat Gar Mat Gar Fac Gar Fac Sto Rec Fac Was Fac Gar Fac Gar Fac Was Fac Gar Res Gar Res Gar Res Gar Res Tes Frg Gar Maximum Alert Level 5 | . . . 1 . . 2 2 3 3 4 3 3 2 2 . 1 . . 3 2 3 2 . 2 3 2 4 2 5 3 4 2 1 3 4 Low Security (%) 30 | 100 100 100 93 100 . 40 17 . . . . . . 34 100 41 100 100 6 . . . 100 60 . . 2 . . . . 37 14 10 . Level 1 15 | . . . 6 . . 12 13 2 12 . . . 7 52 . 58 . . 19 . 16 90 . 21 17 84 20 . . . . 6 85 16 . Level 2 35 | . . . . . . 47 69 91 86 35 85 64 92 13 . . . . 61 100 48 9 . 18 73 15 18 100 22 . 1 55 . 55 . Level 3 14 | . . . . . . . . 5 1 38 14 35 . . . . . . 13 . 34 . . . 9 . 57 . 14 100 50 . . 17 99 Level 4 3 | . . . . . . . . . . 26 . . . . . . . . . . . . . . . . . . 16 . 47 . . . . Level 5 . | . . . . . . . . . . . . . . . . . . . . . . . . . . . . . 47 . . . . . . High Security . | . . . . . . . . . . . . . . . . . . . . . . . . . . . . . . . . . . . . Max Security . | . . . . . . . . . . . . . . . . . . . . . . . . . . . . . . . . . . . . Peak Influence 1684 | 5 108 70 217 84 . 514 610 794 708 1340 715 909 573 428 192 350 65 30 875 496 823 431 86 440 752 423 1176 661 1684 947 1273 690 339 992 1103 Initial 947 | . . 9 . 31 . . 161 392 386 460 703 424 476 230 154 350 65 17 . 459 333 431 86 25 259 423 198 661 495 947 682 685 94 167 711 Average 431 | . 45 7 75 18 . 267 404 562 498 866 664 665 490 245 70 229 45 4 517 452 585 316 63 155 509 341 666 661 1298 931 1030 406 279 533 892 Influence Increases 16927 | 30 466 125 300 127 . 624 863 492 442 940 54 635 477 592 356 458 . 37 915 107 670 210 . 680 713 99 1148 . 1339 3 1182 268 488 1655 432 Destroy 0b10 Robot/C 7740 | . 280 100 160 100 . 400 520 280 220 640 20 300 220 240 60 40 . 20 440 60 240 160 . 320 220 40 400 . 460 . 435 90 120 915 240 Destroy 0b10 Robot/NC 394 | 30 20 5 20 . . 5 30 . 15 10 . 25 15 45 10 5 . 5 35 . 5 5 . 45 5 5 . . 10 . . . 4 40 . Destroy Leader 1162 | . 72 20 56 20 . 60 146 10 64 30 10 20 82 94 . 2 . 12 20 20 10 40 . 70 40 . 30 . 50 . 48 24 16 80 16 Allied During Kill 1284 | . . . 13 7 . 26 . 7 . 41 . 8 7 2 . 1 . . 33 8 13 3 . . 5 6 147 . 507 . 377 44 . 29 . Successful Hack 313 | . 10 . 28 . . . 12 . 7 12 24 12 40 7 60 . . . 14 17 . . . 16 . . . . . . . 14 33 7 . Select Force Hacks 270 | . 30 . . . . . . . . . . . . . 210 30 . . . . . . . . . . . . . . . . . . . Disable Machine 930 | . . . 15 . . 30 15 . 75 . . . 60 60 15 30 . . . . 15 . . 15 75 30 . . 60 . 75 . 84 264 12 Anti-Garrison Action 1826 | . . . . . . . . 150 . 100 . 250 . . . . . . 250 . 250 . . . 250 . 400 . 100 . 38 . . . 38 Destroy Structure 1647 | . 9 . 8 . . 43 20 15 46 32 . 20 38 39 1 . . . 33 2 77 2 . 184 43 18 156 . 152 3 173 96 147 164 126 Advance Influence 350 | . . . . . . . . . . . . . . . . 350 . . . . . . . . . . . . . . . . . . . Partial Spotted 102 | . . . . . . . . . . . . . . . . . . . 15 . . . . 15 . . . . . . . . 24 48 . Lose Combat Pursuer 909 | . 45 . . . . 60 120 30 15 75 . . 15 105 . . . . 75 . 60 . . 15 75 . 15 . . . 36 . 60 108 . Influence Decreases 15824 | 30 442 149 220 207 . 210 673 302 528 308 787 333 879 703 752 270 163 62 40 506 323 786 211 345 332 587 236 515 316 777 873 1318 359 1005 277 Entered New Map 7341 | . . 15 . 49 . . 253 212 408 248 637 183 433 277 242 . 123 8 . 416 143 392 161 11 112 329 66 515 166 737 228 534 75 131 237 Time Decay 5677 | 30 442 134 220 158 . 190 410 . 120 . 130 . 416 386 500 270 40 54 . 90 . 374 50 243 . 238 . . . 40 . 254 254 634 . Lost Part 630 | . . . . . . . 10 30 . . . 50 10 20 10 . . . 40 . 60 20 . 40 60 . 30 . 10 . 40 . . 160 40 Lost Ally 1351 | . . . . . . 20 . 60 . 60 20 100 20 20 . . . . . . 120 . . 51 160 20 140 . 140 . 230 80 30 80 . Purge Threat 825 | . . . . . . . . . . . . . . . . . . . . . . . . . . . . . . . 375 450 . . . Squads Dispatched 42 | . 6 . 1 . . . 4 . 2 . . . 1 3 . 1 . . . . . 4 . 4 . . . . . . . 2 3 11 . Investigation 5 | . 1 . . . . . 1 . . . . . . . . 1 . . . . . 2 . . . . . . . . . . . . . Extermination 12 | . . . . . . . . . . . . . 1 2 . . . . . . . 1 . 1 . . . . . . . 1 2 4 . Reinforcement 17 | . 5 . 1 . . . 3 . 2 . . . . 1 . . . . . . . 1 . 2 . . . . . . . 1 1 . . Assault 4 | . . . . . . . . . . . . . . . . . . . . . . . . 1 . . . . . . . . . 3 . Garrison 4 | . . . . . . . . . . . . . . . . . . . . . . . . . . . . . . . . . . 4 . Intercept . | . . . . . . . . . . . . . . . . . . . . . . . . . . . . . . . . . . . . Searches Triggered . | . . . . . . . . . . . . . . . . . . . . . . . . . . . . . . . . . . . . Construction Impeded 1 | . . . . . . . 1 . . . . . . . . . . . . . . . . . . . . . . . . . . . . Haulers Reinforced 1 | . . . . . . . . . . . . . . 1 . . . . . . . . . . . . . . . . . . . . . Active Scanning Responses . | . . . . . . . . . . . . . . . . . . . . . . . . . . . . . . . . . . . . Cargo Convoy Interrupts . | . . . . . . . . . . . . . . . . . . . . . . . . . . . . . . . . . . . . Alert ID Control Effect 32 | . . . . . . . . . . . . . 2 3 . . . . 1 . 6 1 . . 3 1 8 . 1 . 3 . . 3 . Stealth | -11 -10 -10 -9 -9 -9 -8 -8 -8 -8 -8 -7 -7 -7 -7 -7 -5 -5 -5 -5 -5 -5 -4 -4 -4 -4 -3 -3 -3 -3 -2 -2 -2 -2 -2 -2 --------- Run | Yrd Mat Min Mat Min Exi Min Mat Gar Mat Gar Fac Gar Fac Sto Rec Fac Was Fac Gar Fac Gar Fac Was Fac Gar Res Gar Res Gar Res Gar Res Tes Frg Gar Distress Signals 15 | . 2 . 1 . . . 3 . 2 . . . 3 1 . . . . . . . . . 1 2 . . . . . . . . . . Communications Jammed 22 | . . . . . . . . . . . 6 . . . . 2 . . . . . 6 . 3 . . . . . . . 1 4 . . Distress Signals 20 | . . . . . . . . . . . 6 . . . . . . . . . . 6 . 3 . . . . . . . 1 4 . . Times Spotted 653 | . 23 5 10 5 . 20 36 16 13 37 5 26 20 23 5 6 5 1 33 2 31 15 6 27 29 6 44 . 33 . 36 12 22 78 23 Peak Tracking Total 12 | . 4 2 6 3 9 5 8 3 5 4 4 6 3 4 3 2 3 1 12 1 5 4 6 6 7 3 9 . 8 . 10 2 4 11 6 Tactical Retreats 46 | . 3 . . . . 2 5 2 1 3 . . 1 6 . . . . 2 . 4 . . 1 3 . 1 . . . 1 . 5 6 . Traps | -11 -10 -10 -9 -9 -9 -8 -8 -8 -8 -8 -7 -7 -7 -7 -7 -5 -5 -5 -5 -5 -5 -4 -4 -4 -4 -3 -3 -3 -3 -2 -2 -2 -2 -2 -2 ------- Run | Yrd Mat Min Mat Min Exi Min Mat Gar Mat Gar Fac Gar Fac Sto Rec Fac Was Fac Gar Fac Gar Fac Was Fac Gar Res Gar Res Gar Res Gar Res Tes Frg Gar Traps Triggered 80 | . 2 . . . . . . 9 1 12 . 3 4 2 . 1 . 1 5 1 6 1 . 2 4 1 6 . . . 2 1 1 15 . Indirectly 1 | . . . . . . . . . . . . . . . . . . . 1 . . . . . . . . . . . . . . . . Trap Hack Attempts . | . . . . . . . . . . . . . . . . . . . . . . . . . . . . . . . . . . . . Triggered . | . . . . . . . . . . . . . . . . . . . . . . . . . . . . . . . . . . . . Disarmed . | . . . . . . . . . . . . . . . . . . . . . . . . . . . . . . . . . . . . Reprogrammed . | . . . . . . . . . . . . . . . . . . . . . . . . . . . . . . . . . . . . Reused . | . . . . . . . . . . . . . . . . . . . . . . . . . . . . . . . . . . . . Traps Extracted . | . . . . . . . . . . . . . . . . . . . . . . . . . . . . . . . . . . . . Installed . | . . . . . . . . . . . . . . . . . . . . . . . . . . . . . . . . . . . . Triggered . | . . . . . . . . . . . . . . . . . . . . . . . . . . . . . . . . . . . . Machines | -11 -10 -10 -9 -9 -9 -8 -8 -8 -8 -8 -7 -7 -7 -7 -7 -5 -5 -5 -5 -5 -5 -4 -4 -4 -4 -3 -3 -3 -3 -2 -2 -2 -2 -2 -2 ---------- Run | Yrd Mat Min Mat Min Exi Min Mat Gar Mat Gar Fac Gar Fac Sto Rec Fac Was Fac Gar Fac Gar Fac Was Fac Gar Res Gar Res Gar Res Gar Res Tes Frg Gar Machines Disabled 101 | . . . 1 . 3 2 1 1 5 1 . 2 4 4 2 2 . . 3 . 5 . . 1 8 2 8 . 6 . 8 . 7 23 2 Max in Single Turn 3 | . . . 1 . 1 1 1 1 2 1 . 1 3 2 1 1 . . 1 . 2 . . 1 1 1 2 . 1 . 1 . 1 2 1 Garrison Access 1 | . . . . . . . . . . . . . 1 . . . . . . . . . . . . . . . . . . . . . . Garrison Relay 20 | . . . . . . . . 1 . 1 . 2 . . . . . . 3 . 2 . . . 3 . 4 . 2 . 1 . . . 1 Phase Generator 2 | . . . . . . . . . . . . . . . . . . . . . 1 . . . . . 1 . . . . . . . . Machines Repaired . | . . . . . . . . . . . . . . . . . . . . . . . . . . . . . . . . . . . . Machines Dismantled . | . . . . . . . . . . . . . . . . . . . . . . . . . . . . . . . . . . . . Machines Sabotaged . | . . . . . . . . . . . . . . . . . . . . . . . . . . . . . . . . . . . . Overloaded Fab Kills . | . . . . . . . . . . . . . . . . . . . . . . . . . . . . . . . . . . . . Hacking | -11 -10 -10 -9 -9 -9 -8 -8 -8 -8 -8 -7 -7 -7 -7 -7 -5 -5 -5 -5 -5 -5 -4 -4 -4 -4 -3 -3 -3 -3 -2 -2 -2 -2 -2 -2 --------- Run | Yrd Mat Min Mat Min Exi Min Mat Gar Mat Gar Fac Gar Fac Sto Rec Fac Was Fac Gar Fac Gar Fac Was Fac Gar Res Gar Res Gar Res Gar Res Tes Frg Gar Machines Accessed 116 | . 4 . 4 2 1 . 6 2 4 3 3 3 8 6 14 4 . 3 3 3 2 5 . 2 1 2 3 1 . 4 1 8 6 8 . Terminals 76 | . 2 . 4 . . . 4 2 3 3 2 3 3 4 6 1 . 2 3 1 2 5 . 1 1 1 3 . . 2 1 6 5 6 . Fabricators 5 | . . . . . . . . . . . . . 1 . . 2 . . . . . . . . . . . . . 1 . 1 . . . Repair Stations 9 | . 1 . . . . . 1 . . . . . 2 2 . . . . . 1 . . . . . . . . . . . 1 1 . . Recycling Units 8 | . 1 . . . . . . . . . . . . . 7 . . . . . . . . . . . . . . . . . . . . Scanalyzers 2 | . . . . . . . . . . . . . 1 . . . . . . . . . . . . . . . . . . . . 1 . Garrison Access 12 | . . . . . . . 1 . 1 . 1 . 1 . . 1 . 1 . 1 . . . 1 . 1 . 1 . 1 . . . 1 . Total Hacks 219 | . 11 . 19 2 1 . 13 5 5 4 5 6 16 8 21 8 . 6 5 6 3 13 . 3 1 3 6 1 . 6 2 15 12 13 . Successful 102 | . 8 . 9 2 1 . 5 1 4 2 3 2 4 5 14 6 . 3 1 3 . . . 2 . 2 . 1 . 2 . 7 6 9 . Failed 117 | . 3 . 10 . . . 8 4 1 2 2 4 12 3 7 2 . 3 4 3 3 13 . 1 1 1 6 . . 4 2 8 6 4 . Catastrophic 26 | . . . 1 . . . 2 . . 1 . 1 3 1 1 1 . 2 2 . 2 2 . . . 1 1 . . 1 1 2 1 . . Database Lockouts . | . . . . . . . . . . . . . . . . . . . . . . . . . . . . . . . . . . . . Manual 90 | . 9 . 18 . 1 . 11 . 4 . 2 2 1 1 19 4 . 1 . . . 4 . 1 . 1 . . . 2 . 3 3 3 . Terminals 163 | . 8 . 19 . . . 11 5 4 4 4 6 9 4 12 1 . 4 5 3 3 13 . 2 1 1 6 . . 2 2 12 11 11 . Fabricators 10 | . . . . . . . . . . . . . 1 . . 5 . . . . . . . . . . . . . 2 . 2 . . . Repair Stations 15 | . 2 . . . . . 1 . . . . . 4 4 . . . . . 2 . . . . . . . . . . . 1 1 . . Recycling Units 8 | . 1 . . . . . . . . . . . . . 7 . . . . . . . . . . . . . . . . . . . . Scanalyzers 2 | . . . . . . . . . . . . . 1 . . . . . . . . . . . . . . . . . . . . 1 . Garrison Access 16 | . . . . . . . 1 . 1 . 1 . 1 . . 2 . 2 . 1 . . . 1 . 2 . 1 . 2 . . . 1 . Terminal Hacks 40 | . 2 . 2 2 1 . 1 1 1 2 1 2 . 2 2 . . 1 1 1 . . . 1 . . . . . . . 6 5 6 . Record 5 | . . . . . . . . . . . . . . . . . . . . . . . . . . . . . . . . . . 5 . Part Schematic 2 | . 1 . . . . . . . 1 . . . . . . . . . . . . . . . . . . . . . . . . . . Robot Analysis 1 | . . . . . . . . . . . . . . . . . . . . . . . . . . . . . . . . . 1 . . Open Door 6 | . . . . 2 . . . 1 . . . 1 . 2 . . . . . . . . . . . . . . . . . . . . . Level Access Points 1 | . . . . . . . . . . . . . . . . . . . . . . . . . . . . . . . . . 1 . . Branch Access Points 4 | . . . 1 . . . 1 . . . . . . . . . . . . . . . . 1 . . . . . . . 1 . . . Emergency Access Points 1 | . . . . . . . . . . 1 . . . . . . . . . . . . . . . . . . . . . . . . . Terminal Index 4 | . 1 . 1 . . . . . . . . . . . . . . 1 . . . . . . . . . . . . . 1 . . . Unreport Threat 2 | . . . . . . . . . . . . . . . . . . . . . . . . . . . . . . . . 2 . . . Maintenance Status 2 | . . . . . . . . . . . . . . . . . . . . . . . . . . . . . . . . 1 1 . . Hauler Manifests 1 | . . . . . . . . . . . . . . . . . . . . 1 . . . . . . . . . . . . . . . Registered Components 1 | . . . . . . . . . . . 1 . . . . . . . . . . . . . . . . . . . . . . . . Zone Layout 2 | . . . . . . . . . . . . . . . . . . . . . . . . . . . . . . . . 1 1 . . Garrison Registry 1 | . . . . . . . . . . . . . . . . . . . 1 . . . . . . . . . . . . . . . . Patrol Navigation 2 | . . . . . . . . . . 1 . 1 . . . . . . . . . . . . . . . . . . . . . . . Proto ID Catalog 2 | . . . . . 1 . . . . . . . . . . . . . . . . . . . . . . . . . . . . 1 . Protovariant Controls 1 | . . . . . . . . . . . . . . . . . . . . . . . . . . . . . . . . . 1 . . Release Object 2 | . . . . . . . . . . . . . . . 2 . . . . . . . . . . . . . . . . . . . . Fabricator Hacks 3 | . . . . . . . . . . . . . . . . 2 . . . . . . . . . . . . . . . 1 . . . Network Status 2 | . . . . . . . . . . . . . . . . 2 . . . . . . . . . . . . . . . . . . . Build 1 | . . . . . . . . . . . . . . . . . . . . . . . . . . . . . . . . 1 . . . Repair Station Hacks 8 | . 2 . . . . . . . . . . . 2 3 . . . . . 1 . . . . . . . . . . . . . . . Scan Component 5 | . 1 . . . . . . . . . . . 1 2 . . . . . 1 . . . . . . . . . . . . . . . Repair 3 | . 1 . . . . . . . . . . . 1 1 . . . . . . . . . . . . . . . . . . . . . Recycling Unit Hacks . | . . . . . . . . . . . . . . . . . . . . . . . . . . . . . . . . . . . . Scanalyzer . | . . . . . . . . . . . . . . . . . . . . . . . . . . . . . . . . . . . . Garrison Access Hacks 15 | . . . . . . . 1 . 1 . 1 . 1 . . 1 . 2 . 1 . . . 1 . 2 . 1 . 2 . . . 1 . Unlock Access 10 | . . . . . . . 1 . 1 . 1 . . . . . . 1 . 1 . . . 1 . 1 . 1 . 1 . . . 1 . Seal Access 1 | . . . . . . . . . . . . . 1 . . . . . . . . . . . . . . . . . . . . . . Coupler Status 4 | . . . . . . . . . . . . . . . . 1 . 1 . . . . . . . 1 . . . 1 . . . . . Unauthorized Hacks 36 | . 4 . 7 . . . 3 . 2 . 1 . 1 . 12 3 . . . . . . . . . . . . . . . . 1 2 . Terminals 23 | . 3 . 7 . . . 2 . 2 . 1 . 1 . 5 . . . . . . . . . . . . . . . . . 1 1 . Assimilate 1 | . . . . . . . . . . . . . . . . . . . . . . . . . . . . . . . . . 1 . . Botnet 11 | . 1 . 2 . . . 2 . 2 . 1 . 1 . 1 . . . . . . . . . . . . . . . . . . 1 . Operators 1 | . . . 1 . . . . . . . . . . . . . . . . . . . . . . . . . . . . . . . . Skim 10 | . 2 . 4 . . . . . . . . . . . 4 . . . . . . . . . . . . . . . . . . . . Fabricators 2 | . . . . . . . . . . . . . . . . 2 . . . . . . . . . . . . . . . . . . . Report 1 | . . . . . . . . . . . . . . . . 1 . . . . . . . . . . . . . . . . . . . Liberate 1 | . . . . . . . . . . . . . . . . 1 . . . . . . . . . . . . . . . . . . . Repair Stations 1 | . . . . . . . 1 . . . . . . . . . . . . . . . . . . . . . . . . . . . . Mechanics 1 | . . . . . . . 1 . . . . . . . . . . . . . . . . . . . . . . . . . . . . Recycling Units 8 | . 1 . . . . . . . . . . . . . 7 . . . . . . . . . . . . . . . . . . . . Tunnel 8 | . 1 . . . . . . . . . . . . . 7 . . . . . . . . . . . . . . . . . . . . Scanalyzers 1 | . . . . . . . . . . . . . . . . . . . . . . . . . . . . . . . . . . 1 . Researchers 1 | . . . . . . . . . . . . . . . . . . . . . . . . . . . . . . . . . . 1 . Garrison Access 1 | . . . . . . . . . . . . . . . . 1 . . . . . . . . . . . . . . . . . . . Eject 1 | . . . . . . . . . . . . . . . . 1 . . . . . . . . . . . . . . . . . . . Data Cores Recovered 3 | . . . . . . . 2 . . . . . . . . . . . . . . . . . . . . . . . . . 1 . . Used 1 | . . . . . . . 1 . . . . . . . . . . . . . . . . . . . . . . . . . . . . Hacking Detections 88 | . 2 . 3 . . . 3 2 1 2 2 3 7 5 6 3 . 3 3 3 2 5 . 2 1 2 3 . . 4 1 8 5 7 . Full Trace Events 7 | . . . 1 . . . 2 . . . . 1 . . . . . . . . . 2 . . . . 1 . . . . . . . . Feedback Events 1 | . . . . . . . . . . . . . . . . . . . . . . . . . . . 1 . . . . . . . . Corruption 1 | . . . . . . . . . . . . . . . . . . . . . . . . . . . 1 . . . . . . . . Feedback Blocked . | . . . . . . . . . . . . . . . . . . . . . . . . . . . . . . . . . . . . Robot Schematics Acquired 1 | . . . . . . . . . . . . . . . . . . . . . . . . . . . . . . . . . 1 . . Robots Built . | . . . . . . . . . . . . . . . . . . . . . . . . . . . . . . . . . . . . Authchips . | . . . . . . . . . . . . . . . . . . . . . . . . . . . . . . . . . . . . Time . | . . . . . . . . . . . . . . . . . . . . . . . . . . . . . . . . . . . . Total Robot Build Rating . | . . . . . . . . . . . . . . . . . . . . . . . . . . . . . . . . . . . . Part Schematics Acquired 3 | . 1 . . . . . . . 1 . . . . . . . . . . . . . . . . . . . . . . . 1 . . Parts Built 2 | . . . . . . . . . . . . . . . . . . . . . . . . . . . . . . . . 2 . . . Authchips . | . . . . . . . . . . . . . . . . . . . . . . . . . . . . . . . . . . . . Time 69 | . . . . . . . . . . . . . . . . . . . . . . . . . . . . . . . . 69 . . . Total Part Build Rating 18 | . . . . . . . . . . . . . . . . . . . . . . . . . . . . . . . . 18 . . . Parts Repaired 3 | . 1 . . . . . . . . . . . 1 1 . . . . . . . . . . . . . . . . . . . . . Time 80 | . 26 . . . . . . . . . . . 22 32 . . . . . . . . . . . . . . . . . . . . . Parts Recycled . | . . . . . . . . . . . . . . . . . . . . . . . . . . . . . . . . . . . . Recycled Matter . | . . . . . . . . . . . . . . . . . . . . . . . . . . . . . . . . . . . . Retrieved Matter . | . . . . . . . . . . . . . . . . . . . . . . . . . . . . . . . . . . . . Retrieved Components . | . . . . . . . . . . . . . . . . . . . . . . . . . . . . . . . . . . . . Parts Scanalyzed . | . . . . . . . . . . . . . . . . . . . . . . . . . . . . . . . . . . . . Part Schematics Acquired . | . . . . . . . . . . . . . . . . . . . . . . . . . . . . . . . . . . . . Parts Damaged . | . . . . . . . . . . . . . . . . . . . . . . . . . . . . . . . . . . . . Bothacking | -11 -10 -10 -9 -9 -9 -8 -8 -8 -8 -8 -7 -7 -7 -7 -7 -5 -5 -5 -5 -5 -5 -4 -4 -4 -4 -3 -3 -3 -3 -2 -2 -2 -2 -2 -2 ------------ Run | Yrd Mat Min Mat Min Exi Min Mat Gar Mat Gar Fac Gar Fac Sto Rec Fac Was Fac Gar Fac Gar Fac Was Fac Gar Res Gar Res Gar Res Gar Res Tes Frg Gar Used RIF Installer 11 | . . . . . . . . 2 . 2 . 1 . . . . . . 1 . 1 . . . 1 . 1 . 1 . 1 . . . . Code Merge 1 | . . . . . . . . . . . . . . . . . . . 1 . . . . . . . . . . . . . . . . Threat Obfuscator 1 | . . . . . . . . . . . . . . . . . . . . . . . . . . . . . . . 1 . . . . Signal Jammer 1 | . . . . . . . . . . 1 . . . . . . . . . . . . . . . . . . . . . . . . . Zone Cloak 1 | . . . . . . . . . . . . . . . . . . . . . . . . . 1 . . . . . . . . . . Robot Detection 1 | . . . . . . . . . . . . . . . . . . . . . . . . . . . . . 1 . . . . . . Watcher Feeds 1 | . . . . . . . . . . . . . . . . . . . . . 1 . . . . . . . . . . . . . . Patrol Navigation 1 | . . . . . . . . 1 . . . . . . . . . . . . . . . . . . . . . . . . . . . Alert ID Control 1 | . . . . . . . . . . . . 1 . . . . . . . . . . . . . . . . . . . . . . . Autooverride 1 | . . . . . . . . . . 1 . . . . . . . . . . . . . . . . . . . . . . . . . Autoassimilate 1 | . . . . . . . . . . . . . . . . . . . . . . . . . . . 1 . . . . . . . . Robots Hacked 105 | . . . . . 4 . . . . 2 . 7 2 2 . 1 3 . 9 . 8 3 5 5 6 1 13 . 10 . 8 6 2 7 1 Non-combat 14 | . . . . . 3 . . . . . . . . . . . . . . . . 2 . 1 . . 1 . . . 1 5 1 . . Combat 91 | . . . . . 1 . . . . 2 . 7 2 2 . 1 3 . 9 . 8 1 5 4 6 1 12 . 10 . 7 1 1 7 1 Autooverrided 31 | . . . . . . . . . . 1 . 1 2 . . . . . 4 . 2 1 . 4 3 . 3 . 4 . 3 1 . 2 . Autoassimilated 7 | . . . . . . . . . . . . . . . . . . . . . . . . . . . . . 2 . 2 . 1 1 1 Robot Hacks Applied 81 | . . . . . 4 . . . . 1 . 7 . 2 . 1 4 . 5 . 9 2 6 2 4 2 10 . 5 . 5 7 1 4 . parse_system 6 | . . . . . 4 . . . . . . 1 . . . . . . . . . . . . . . . . 1 . . . . . . find_chute 1 | . . . . . . . . . . . . . . . . . . . . . . 1 . . . . . . . . . . . . . drop_inventory 4 | . . . . . . . . . . . . . . . . . . . . . . 1 . 1 . . . . . . . 2 . . . ignore_parts 1 | . . . . . . . . . . . . . . . . . . . . . . . . . . . . . . . . 1 . . . purge_threat 4 | . . . . . . . . . . . . . . . . . . . . . . . . . . . . . . . 3 1 . . . block_reporting 2 | . . . . . . . . . . . . . . . . . . . . . . . . . . . . . . . . 1 1 . . disable_scanner 1 | . . . . . . . . . . . . . . . . . . . . . . . . . . . . . . . . . . 1 . ignore_targets 10 | . . . . . . . . . . . . . . . . . 4 . . . . . 6 . . . . . . . . . . . . scatter_targeting 1 | . . . . . . . . . . . . . . . . . . . . . . . . . 1 . . . . . . . . . . disrupt_area 1 | . . . . . . . . . . . . . . . . . . . . . 1 . . . . . . . . . . . . . . spike_heat 1 | . . . . . . . . . . . . . . . . . . . . . 1 . . . . . . . . . . . . . . amplify_resonance 19 | . . . . . . . . . . . . 3 . . . . . . 4 . 5 . . . 1 . 3 . 2 . 1 . . . . wipe_record 1 | . . . . . . . . . . . . . . 1 . . . . . . . . . . . . . . . . . . . . . reboot_system 1 | . . . . . . . . . . . . 1 . . . . . . . . . . . . . . . . . . . . . . . overwrite_iff 8 | . . . . . . . . . . . . . . . . 1 . . 1 . 2 . . 1 . 1 1 . . . 1 . . . . formatsys_low 3 | . . . . . . . . . . . . . . . . . . . . . . . . . . . 1 . . . . 2 . . . formatsys_high 17 | . . . . . . . . . . 1 . 2 . 1 . . . . . . . . . . 2 1 5 . 2 . . . . 3 . Relay Couplers Released 98 | . . . . . . . . 5 . 4 . 8 . . . 4 . . 11 . 12 . . . 15 . 17 . 10 . 8 . . . 4 Ejected 4 | . . . . . . . . . . . . . . . . 4 . . . . . . . . . . . . . . . . . . . Machine Destruction 88 | . . . . . . . . 5 . 4 . 8 . . . . . . 11 . 9 . . . 15 . 17 . 10 . 5 . . . 4 Programmers 6 | . . . . . . . . . . . . . . . . . . . . . 3 . . . . . . . . . 3 . . . . Attached 32 | . . . . . . . . 1 . 1 . 5 . . . 3 . . 2 . 3 1 . 1 4 . 5 . 1 . 2 . . 2 1 Merged Code Value 255 | . . . . . . . . . . . . . . . . . . . 26 . 30 . . . 49 . 54 . 67 . 29 . . . . Fabnet Peak Effective % . | . . . . . . . . . . . . . . . . . . . . . . . . . . . . . . . . . . . . Robots Rewired 29 | . . . . . . . . 6 . 3 . 3 . . . . . . . . 6 . . . 1 . 4 . 1 . 5 . . . . Allies Hacked 6 | . . . . . . . . . . 2 . 1 . . . . . . . . 1 . . . . . . . . . 1 1 . . . Hacks Repelled . | . . . . . . . . . . . . . . . . . . . . . . . . . . . . . . . . . . . . Allies | -11 -10 -10 -9 -9 -9 -8 -8 -8 -8 -8 -7 -7 -7 -7 -7 -5 -5 -5 -5 -5 -5 -4 -4 -4 -4 -3 -3 -3 -3 -2 -2 -2 -2 -2 -2 -------- Run | Yrd Mat Min Mat Min Exi Min Mat Gar Mat Gar Fac Gar Fac Sto Rec Fac Was Fac Gar Fac Gar Fac Was Fac Gar Res Gar Res Gar Res Gar Res Tes Frg Gar Total Allies 103 | . . 2 . 3 . . . 6 . 5 . 7 2 1 . 1 . . 7 . 10 1 . 4 6 1 16 . 9 . 11 3 1 6 1 Largest Group 12 | . . 2 2 3 3 3 . 4 . 3 1 3 2 1 . 1 . . 3 2 6 1 . 1 2 2 9 9 11 9 12 5 1 4 1 Highest-Rated Group 781 | . . 45 45 40 40 40 . 62 . 45 16 36 47 32 . 29 . . 171 142 109 56 . 49 98 113 672 672 672 632 781 442 58 248 148 Highest-Rated Ally 148 | . . 31 31 31 16 16 . 31 . 16 16 32 31 32 . 29 . . 80 80 85 56 . 49 49 64 119 119 119 119 148 148 58 64 148 Total Orders 6 | . . . . . 2 . . . . . . . . . . . . . . . . . . 1 . . . . 2 . . . . 1 . STAY 3 | . . . . . 1 . . . . . . . . . . . . . . . . . . . . . . . 1 . . . . 1 . FOLLOW 2 | . . . . . 1 . . . . . . . . . . . . . . . . . . . . . . . 1 . . . . . . RETURN 1 | . . . . . . . . . . . . . . . . . . . . . . . . 1 . . . . . . . . . . . Ally Attacks 549 | . . . 19 3 . 22 . 16 . 27 . 29 28 8 . 6 . . 23 5 46 3 . 5 30 5 59 . 57 . 109 17 . 32 . Total Damage 14955 | . . . 341 44 . 196 . 185 . 416 . 367 369 268 . 94 . . 400 297 846 62 . 60 580 231 2525 . 1793 . 4602 434 . 845 . Kills 92 | . . . 8 1 . 2 . 1 . 3 . 5 4 3 . . . . 4 1 6 1 . . 3 1 10 . 12 . 22 2 . 3 . Allies Corrupted 3 | . . . . . . . . . . . . . . . . . . . . . 2 . . . . . . . . . . 1 . . . Allies Melted . | . . . . . . . . . . . . . . . . . . . . . . . . . . . . . . . . . . . . Intel | -11 -10 -10 -9 -9 -9 -8 -8 -8 -8 -8 -7 -7 -7 -7 -7 -5 -5 -5 -5 -5 -5 -4 -4 -4 -4 -3 -3 -3 -3 -2 -2 -2 -2 -2 -2 ------- Run | Yrd Mat Min Mat Min Exi Min Mat Gar Mat Gar Fac Gar Fac Sto Rec Fac Was Fac Gar Fac Gar Fac Was Fac Gar Res Gar Res Gar Res Gar Res Tes Frg Gar Active Infowar (turns) 9847 | 161 1321 1249 815 748 1150 549 669 1275 55 . 218 232 . . . 207 . 57 6 . . 260 . 135 . 199 9 . 27 . 96 . . 409 . Optics 95 | . . . . . . . . . . . . . . . . . . . . . . . . . . . . . . . 95 . . . . IFF 531 | . . . . . . . . . . . . . . . . . . 57 6 . . 260 . . . 199 9 . . . . . . . . Seismic 6058 | 161 1321 1249 815 748 1150 549 65 . . . . . . . . . . . . . . . . . . . . . . . . . . . . T.N.C. 2 | . . . . . . . . . . . . 2 . . . . . . . . . . . . . . . . . . . . . . . Machine Analysis 1934 | . . . . . . . 604 1275 55 . . . . . . . . . . . . . . . . . . . . . . . . . . Triangulation 207 | . . . . . . . . . . . . . . . . 207 . . . . . . . . . . . . . . . . . . . Cloaking 288 | . . . . . . . . . . . . . . . . . . . . . . . . . . . . . . . . . . 288 . Spoofing 1 | . . . . . . . . . . . . . . . . . . . . . . . . . . . . . . . 1 . . . . Jamming 1016 | . . . . . . . . . . . 218 230 . . . . . . . . . . . 135 . . . . 27 . . . . 406 . Robot Analysis Total 1 | . . . . . . . . . . . . . . . . . . . . . . . . . . . . . . . . . 1 . . Derelict Logs Recovered 2 | . . 1 . 1 . . . . . . . . . . . . . . . . . . . . . . . . . . . . . . . Drone Launches 16 | . . . . . . . . . . . . . . . . . . . . . 5 . . 3 8 . . . . . . . . . . Drone Recoveries 1 | . . . . . . . . . . . . . . . . . . . . . . . . 1 . . . . . . . . . . . Exploration | -11 -10 -10 -9 -9 -9 -8 -8 -8 -8 -8 -7 -7 -7 -7 -7 -5 -5 -5 -5 -5 -5 -4 -4 -4 -4 -3 -3 -3 -3 -2 -2 -2 -2 -2 -2 ------------- Run | Yrd Mat Min Mat Min Exi Min Mat Gar Mat Gar Fac Gar Fac Sto Rec Fac Was Fac Gar Fac Gar Fac Was Fac Gar Res Gar Res Gar Res Gar Res Tes Frg Gar Turns Passed 30102 | 330 1348 1249 815 752 1628 597 999 1275 257 1315 267 1457 1005 910 1719 598 97 253 1646 196 1261 878 108 660 1395 504 1207 9 503 84 882 554 556 2238 550 Spaces Moved 22258 | 169 546 722 431 406 1148 582 591 590 140 803 159 859 555 499 1042 473 115 247 1073 136 1002 701 112 560 885 289 799 7 534 94 879 847 1108 2943 212 Core 9 | 4 . . . . . . . . . . . . . . . . . . . . . . . . . . . . . . . . . . 5 Treads 6844 | 165 546 722 431 406 723 . . . . . . 3 . . . . . . 802 136 263 273 . . . . 521 7 534 94 754 464 . . . Legs 10571 | . . . . . 425 582 591 590 140 803 159 465 . . 17 304 115 247 175 . . 239 112 551 780 289 149 . . . 125 . 792 2921 . Wheels 2644 | . . . . . . . . . . . . 391 555 499 1025 69 . . . . . . . . 105 . . . . . . . . . . Hover 1099 | . . . . . . . . . . . . . . . . . . . . . 739 189 . 9 . . . . . . . . . 22 140 Flight 1091 | . . . . . . . . . . . . . . . . 100 . . 96 . . . . . . . 129 . . . . 383 316 . 67 Fastest Speed 23 | 50 160 160 160 160 90 90 90 90 170 90 100 100 135 120 130 58 58 58 58 127 70 70 84 84 90 109 66 66 44 44 44 23 23 23 55 Average Speed 98 | 157 160 160 160 160 134 90 150 168 170 127 100 126 135 125 136 99 58 58 108 127 96 98 84 86 117 145 104 66 56 44 54 48 23 29 110 Slowest Speed 1150 | 160 240 160 160 160 160 90 170 170 170 170 100 320 135 160 301 145 58 58 127 127 174 167 84 173 210 192 192 66 66 44 61 61 23 100 1150 Overloaded Moves . | . . . . . . . . . . . . . . . . . . . . . . . . . . . . . . . . . . . . Propulsion Burnouts . | . . . . . . . . . . . . . . . . . . . . . . . . . . . . . . . . . . . . Robots Hopped 16 | . . . . . . . . . . . . . . . . . . . . . . . . . . . . . . . . 11 3 . 2 Potential Cave-ins . | . . . . . . . . . . . . . . . . . . . . . . . . . . . . . . . . . . . . Cave-ins Triggered . | . . . . . . . . . . . . . . . . . . . . . . . . . . . . . . . . . . . . Exploration Rate (%) 51 | 8 87 101 32 68 71 98 57 66 24 76 5 76 15 79 99 10 93 8 84 5 79 25 74 23 67 5 90 1 67 4 77 24 84 48 26 Regions Visited 35 Branch Regions 8 Pre-discovered Areas 9 | . 1 . . 1 . . . . . . . . . . 7 . . . . . . . . . . . . . . . . . . . . Known Exits Taken 13 | . . . 1 . . . 1 . 1 . 1 . 1 . . . . 1 . 1 . . . 1 . 1 . 1 . 1 . 1 . 1 . Unknown Exits Taken 9 | 1 1 1 . 1 1 1 . . . . . . . 1 1 . . . . . . . . . . . . . . . . . 1 . . Scrap Searched 6 | . . 2 . 2 . 2 . . . . . . . . . . . . . . . . . . . . . . . . . . . . . Spaces Dug 63 | . 8 . 5 . . . . . . . . 2 . 1 . . . . 1 . . . . 3 . 10 . . 3 . . 2 13 15 . Terrain Destroyed 842 | . 11 . 7 . . 56 19 5 42 8 . 6 41 41 6 . . . 12 . 76 1 . 100 17 15 72 . 74 . 37 6 52 62 76 Melee 6 | . . . . . . . . . . . . 2 . . . . . . 1 . . . . 3 . . . . . . . . . . . Projectile 289 | . 11 . 7 . . 44 19 5 7 3 . 4 12 14 6 . . . 9 . 8 1 . . 1 15 10 . 11 . 18 6 17 33 28 AOE 547 | . . . . . . 12 . . 35 5 . . 29 27 . . . . 2 . 68 . . 97 16 . 62 . 63 . 19 . 35 29 48 Terrain Rammed . | . . . . . . . . . . . . . . . . . . . . . . . . . . . . . . . . . . . . Walls Destroyed . | . . . . . . . . . . . . . . . . . . . . . . . . . . . . . . . . . . . . Machines Disabled . | . . . . . . . . . . . . . . . . . . . . . . . . . . . . . . . . . . . . Actions | -11 -10 -10 -9 -9 -9 -8 -8 -8 -8 -8 -7 -7 -7 -7 -7 -5 -5 -5 -5 -5 -5 -4 -4 -4 -4 -3 -3 -3 -3 -2 -2 -2 -2 -2 -2 --------- Run | Yrd Mat Min Mat Min Exi Min Mat Gar Mat Gar Fac Gar Fac Sto Rec Fac Was Fac Gar Fac Gar Fac Was Fac Gar Res Gar Res Gar Res Gar Res Tes Frg Gar Total 28652 | 202 891 782 505 487 1236 632 694 867 159 1052 252 1095 745 676 1309 592 142 352 1443 151 1217 845 125 672 1136 352 1071 11 662 135 1183 962 1375 4143 499 Wait 3678 | 4 245 40 20 55 38 18 40 182 10 75 79 30 100 74 225 77 24 85 217 8 112 66 5 33 112 14 67 4 70 40 147 75 177 873 237 Move 22202 | 168 545 721 430 405 1147 581 591 589 139 802 159 858 554 498 1041 473 114 247 1072 135 1001 701 111 559 884 288 798 7 532 93 878 828 1101 2943 209 Hop 12 | . . . . . . . . . . . . . . . . . . . . . . . . . . . . . . . . 8 3 . 1 Pick Up 222 | 7 14 . 7 2 12 2 14 2 1 12 2 17 5 4 5 11 . 3 16 . 5 8 . . 17 7 5 . 1 . 7 6 10 19 1 Fast Attach 198 | 8 7 . 4 4 4 . 4 5 2 9 . 15 4 9 2 3 . 2 5 . 3 5 . 3 4 5 10 . 1 1 15 4 15 43 2 Attach 146 | . . . 3 . 4 1 4 5 . 13 2 3 2 1 5 4 . 2 12 . 10 2 1 8 14 3 4 . . 1 3 2 3 23 11 Detach 91 | 1 . . 1 . 1 . 1 3 . 7 . 1 1 . 2 2 . 3 7 . 8 . . 9 5 . 3 . . . 4 1 3 21 7 Swap 162 | . 13 1 7 . 1 2 6 2 1 8 1 18 6 8 2 2 . . 10 1 8 5 . 5 1 4 16 . 7 . 12 6 1 7 1 Drop 341 | . 11 1 11 7 19 3 16 4 4 20 1 22 7 10 9 10 . 5 11 2 3 14 . 3 16 10 11 . 1 . 20 10 28 51 1 Fire 1022 | 14 56 17 22 9 6 24 7 . . 24 7 42 48 48 10 8 4 . 50 4 66 33 8 28 50 18 63 . 44 . 69 20 33 161 29 Melee 192 | . . . . . 4 . 1 2 . 13 1 43 1 22 8 . . 4 27 1 1 10 . 24 24 2 . . 4 . . . . . . Ram 2 | . . . . . . . . . . . . . 1 1 . . . . . . . . . . . . . . . . . . . . . Kick 23 | . . . . . . 1 10 3 2 . . . . . . 2 . 1 . . . 1 . . . . . . . . . . 1 2 . Crush 7 | . . 2 . 5 . . . . . . . . . . . . . . . . . . . . . . . . . . . . . . . Escape Stasis 177 | . . . . . . . . 45 . 29 . 12 16 . . . . . 16 . . . . . 7 . 52 . . . . . . . . Rewire 177 | . . . . . . . . 25 . 40 . 34 . 1 . . . . . . . . . . 2 1 42 . 2 . 28 2 . . . Trap . | . . . . . . . . . . . . . . . . . . . . . . . . . . . . . . . . . . . . Miscellaneous . | . . . . . . . . . . . . . . . . . . . . . . . . . . . . . . . . . . . . Route ------- -11/Scrapyard -10/Materials (discovered 5 exits: *Mat x3 / [*Min x2]) -10/Mines (discovered 3 exits: *Mat x2 / [*Sub]) -9/Materials (discovered 2 exits: *Mat / *Min) -9/Mines (discovered 4 exits: *Mat x2 / *Exi / [*Zio]) -9/Exiles (discovered 2 exits: [*Min x2]) -8/Mines (discovered 2 exits: *Mat x2) -8/Materials (discovered 2 exits: *Fac / Gar) -8/Garrison (discovered 2 exits: *Mat x2) -8/Materials -8/Garrison (discovered 3 exits: *Fac x3) -7/Factory (discovered 2 exits: *Sto / Gar) -7/Garrison (discovered 4 exits: *Fac x3 / *Fac) -7/Factory (discovered 2 exits: *Fac / *Sto) -7/Storage (discovered 2 exits: *Fac / *Rec) -7/Recycling -5/Factory -5/Waste -5/Factory (discovered 2 exits: [*Upp] / Gar) -5/Garrison (discovered 3 exits: *Fac x3) -5/Factory -5/Garrison (discovered 3 exits: *Fac x3) -4/Factory -4/Waste -4/Factory (discovered 5 exits: *Res / *Upp x2 / Arm / Gar) -4/Garrison (discovered 3 exits: *Res x3) -3/Research (discovered 2 exits: [*Qua] / Gar) -3/Garrison (discovered 3 exits: *Res x3) -3/Research -3/Garrison (discovered 3 exits: *Res x3) -2/Research -2/Garrison (discovered 4 exits: *Acc x3 / *Res) -2/Research (discovered 2 exits: *Tes x2) -2/Testing (discovered 3 exits: *Acc / [*Sec] / *Frg) -2/Protoforge -2/Garrison History --------- Turn | Location | Event 52 | -11/Scrapyard | Discovered new exit (range 15) 331 | -11/Scrapyard | Entered Materials 332 | -10/Materials | Build established: Mutant 580 | -10/Materials | Discovered new exit (range 5) 821 | -10/Materials | Repaired Seismic Detector 1003 | -10/Materials | Discovered new exit (range 10) 1430 | -10/Materials | Discovered new exit (range 13) 1558 | -10/Materials | Discovered new exit (range 5) 1592 | -10/Materials | Discovered new exit (range 7) 1679 | -10/Materials | Entered Mines 1822 | -10/Mines | Discovered new exit (range 11) 2142 | -10/Mines | Learned Materials stockpile data 2670 | -10/Mines | Discovered new exit (range 5) 2843 | -10/Mines | Discovered new exit (range 6) 2928 | -10/Mines | Entered Materials 2928 | -9/Materials | Accompanied by 2 allies 2928 | -9/Materials | Evolved 2 slots: Utility x1, Weapon x1 2933 | -9/Materials | Led the pair of lost Derelicts to an unsafe place 2955 | -9/Materials | Identified exit to Mines 3250 | -9/Materials | Build established: Tank 3257 | -9/Materials | Discovered new exit (range 3) 3743 | -9/Materials | Entered Mines 3743 | -9/Mines | Accompanied by 1 ally 3744 | -9/Mines | A Derelict revealed a hidden shortcut to a safe place 3774 | -9/Mines | Discovered new exit (range 7) 3833 | -9/Mines | Learned location of Zion (-7) 4001 | -9/Mines | Found the Drone Emporium 4009 | -9/Mines | Found Prototype Device 4009 | -9/Mines | Identified Bomb Drone Bay 4091 | -9/Mines | Discovered new exit (range 12) 4285 | -9/Mines | Met a Derelict who couldn't figure out how to use a Trap Extractor 4459 | -9/Mines | Assisted by bots powering up and referring to "LRC-V3" 4482 | -9/Mines | Deemed a non-threat by the Exiles lab entrance 4483 | -9/Mines | Discovered new exit (range 5) 4495 | -9/Mines | Entered Exiles 4495 | -9/Exiles | Accompanied by 3 allies 4523 | -9/Exiles | Discovered new exit (range 15) 4537 | -9/Exiles | Met 8R-AWN 4566 | -9/Exiles | Met EX-HEX 4608 | -9/Exiles | Met EX-BIN 4645 | -9/Exiles | Met EX-DEC 4709 | -9/Exiles | Discovered new exit (range 10) 4780 | -9/Exiles | Build established: Mutant 5595 | -9/Exiles | Aligned with FarCom system 5597 | -9/Exiles | Given EX-Vault access code 5635 | -9/Exiles | Opened EX-Vault 5674 | -9/Exiles | Found Potential Leg 5677 | -9/Exiles | Found Potential Leg 5682 | -9/Exiles | Found AWS/Autocannon 5687 | -9/Exiles | Found AWS/Gauss 5723 | -9/Exiles | Warned to stay clear of 0b10 Research branches 6102 | -9/Exiles | Attacked by the Exiles 6123 | -9/Exiles | Stole three prototypes: AWS/Gauss, Potential Leg, AWS/Autocannon 6123 | -9/Exiles | Entered Mines 6123 | -8/Mines | Accompanied by 3 allies 6152 | -8/Mines | Found a Scrap Suit stashed away for nefarious purposes 6302 | -8/Mines | Discovered new exit (range 5) 6459 | -8/Mines | Build established: Tank 6460 | -8/Mines | Destroyed 8 combat bots 6528 | -8/Mines | Discovered new exit (range 16) 6720 | -8/Mines | Entered Materials 6720 | -8/Materials | Evolved 2 slots: Utility x2 6879 | -8/Materials | AWS/Gauss suddenly broke down 7408 | -8/Materials | Discovered new exit (range 16) 7719 | -8/Materials | Identified exit to Garrison 7719 | -8/Materials | Entered Garrison 7737 | -8/Garrison | Triggered checkpoint 7828 | -8/Garrison | Installed Relay Interface Framework 8213 | -8/Garrison | Expanded RIF knowledge: Patrol Navigation 8372 | -8/Garrison | Discovered new exit (range 12) 8515 | -8/Garrison | Triggered checkpoint 8571 | -8/Garrison | Lost 4 allies 8679 | -8/Garrison | Triggered checkpoint 8705 | -8/Garrison | Discovered new exit (range 15) 8963 | -8/Garrison | Garrison Relay disabled 8994 | -8/Garrison | Entered Materials 9249 | -8/Materials | Identified exit to Garrison 9251 | -8/Materials | Entered Garrison 9275 | -8/Garrison | Triggered checkpoint 9633 | -8/Garrison | Triggered checkpoint 9651 | -8/Garrison | Triggered checkpoint 9651 | -8/Garrison | AWS/Autocannon suddenly broke down 9696 | -8/Garrison | Lost 3 allies 9762 | -8/Garrison | Discovered new exit (range 13) 9964 | -8/Garrison | Build established: Mutant 10057 | -8/Garrison | Triggered checkpoint 10094 | -8/Garrison | Discovered new exit (range 12) 10127 | -8/Garrison | Expanded RIF knowledge: Signal Jamming 10138 | -8/Garrison | AWS/Gauss suddenly broke down 10279 | -8/Garrison | Triggered checkpoint 10325 | -8/Garrison | Expanded RIF knowledge: Autooverride 10343 | -8/Garrison | Discovered new exit (range 8) 10443 | -8/Garrison | Build established: Scavenger-Mutant 10458 | -8/Garrison | Triggered checkpoint 10566 | -8/Garrison | Entered Factory 10566 | -7/Factory | Accompanied by 1 ally 10566 | -7/Factory | Evolved 2 slots: Propulsion x1, Utility x1 10680 | -7/Factory | Discovered new exit (range 11) 10833 | -7/Factory | Identified exit to Garrison 10833 | -7/Factory | Entered Garrison 10845 | -7/Garrison | Triggered checkpoint 10864 | -7/Garrison | Garrison Relay disabled 11057 | -7/Garrison | Triggered checkpoint 11065 | -7/Garrison | Triggered checkpoint 11105 | -7/Garrison | Triggered checkpoint 11141 | -7/Garrison | Discovered new exit (range 10) 11241 | -7/Garrison | Expanded RIF knowledge: Alert ID Control 11487 | -7/Garrison | Discovered new exit (range 14) 11489 | -7/Garrison | Triggered checkpoint 11497 | -7/Garrison | Discovered new exit (range 6) 11707 | -7/Garrison | Triggered checkpoint 11891 | -7/Garrison | Build established: Bothacker-Mutant 11969 | -7/Garrison | Triggered checkpoint 12017 | -7/Garrison | Rescued a captive Derelict 12058 | -7/Garrison | Garrison Relay disabled 12147 | -7/Garrison | Discovered new exit (range 12) 12290 | -7/Garrison | Entered Factory 12290 | -7/Factory | Accompanied by 1 ally 12382 | -7/Factory | Repaired Remote Datajack 12878 | -7/Factory | Build established: Botlord-Tank 12982 | -7/Factory | Discovered new exit (range 14) 13157 | -7/Factory | Discovered new exit (range 14) 13163 | -7/Factory | Identified exit to Storage 13174 | -7/Factory | Identified exit to Factory 13295 | -7/Factory | Entered Storage 13407 | -7/Storage | Repaired Arm. Wheel 13869 | -7/Storage | Discovered exit to Factory (range 15) 13907 | -7/Storage | Core integrity fell below 50% 14200 | -7/Storage | Used back door to open Recycling access 14200 | -7/Storage | Discovered new exit (range 5) 14205 | -7/Storage | Entered Recycling 14389 | -7/Recycling | Build established: Bothacker-Mutant 14829 | -7/Recycling | Scanned before Scraplab entrance 15035 | -7/Recycling | Discovered new exit (range 15) 15186 | -7/Recycling | Entered Scraplab 15192 | -7/Recycling | Angered Scraplab inhabitants 15193 | -7/Recycling | Found Prototype Device 15193 | -7/Recycling | Identified Scrap Engine 15201 | -7/Recycling | AWS/Gauss suddenly broke down 15924 | -7/Recycling | Entered Factory 15924 | -5/Factory | Evolved 4 slots: Propulsion x2, Utility x2 16522 | -5/Factory | Manually triggered Chute Trap 16522 | -5/Factory | Sucked down chute 16522 | -5/Factory | Entered Waste 16537 | -5/Waste | EMP discharged 16539 | -5/Waste | Spotted C-40 Crusher 16541 | -5/Waste | Spotted C-40 Crusher 16554 | -5/Waste | Spotted C-40 Crusher 16568 | -5/Waste | Spotted C-40 Crusher 16570 | -5/Waste | Spotted C-40 Crusher 16602 | -5/Waste | Discovered new exit (range 13) 16619 | -5/Waste | Entered Factory 16808 | -5/Factory | Discovered new exit (range 16) 16842 | -5/Factory | Build established: Bothacker-Construct 16872 | -5/Factory | Identified exit to Garrison 16872 | -5/Factory | Entered Garrison 16954 | -5/Garrison | Triggered checkpoint 16989 | -5/Garrison | Lost 3 parts (1n2w) 17004 | -5/Garrison | Destroyed 9 combat bots 17053 | -5/Garrison | Discovered new exit (range 13) 17104 | -5/Garrison | Triggered checkpoint 17287 | -5/Garrison | Garrison Relay disabled 17414 | -5/Garrison | Triggered checkpoint 17491 | -5/Garrison | Expanded RIF knowledge: Code Merge 17506 | -5/Garrison | Discovered new exit (range 3) 17527 | -5/Garrison | Garrison Relay disabled 17558 | -5/Garrison | Discovered new exit (range 13) 17558 | -5/Garrison | Discovered new exit (range 82) 17558 | -5/Garrison | Discovered new exit (range 56) 17636 | -5/Garrison | Build established: Botlord-Construct 18198 | -5/Garrison | Triggered checkpoint 18251 | -5/Garrison | Found embedded Infiltrators 18260 | -5/Garrison | Triggered checkpoint 18278 | -5/Garrison | Triggered checkpoint 18328 | -5/Garrison | AWS/Gauss suddenly broke down 18338 | -5/Garrison | Found Relay Coupler [Proto] 18340 | -5/Garrison | Found Relay Coupler [Proto] 18343 | -5/Garrison | Found Relay Coupler [Proto] 18382 | -5/Garrison | Found Relay Coupler [Proto] 18456 | -5/Garrison | Garrison Relay disabled 18518 | -5/Garrison | Entered Factory 18518 | -5/Factory | Accompanied by 2 allies 18642 | -5/Factory | P-70 Sage assimilated allied SR-1LE(x) 18713 | -5/Factory | Identified exit to Garrison 18714 | -5/Factory | Entered Garrison 18714 | -5/Garrison | Accompanied by 1 ally 18754 | -5/Garrison | Triggered checkpoint 18890 | -5/Garrison | Lost 3 allies 18926 | -5/Garrison | Garrison Relay disabled 18965 | -5/Garrison | Spotted B-75 Beast 18969 | -5/Garrison | Triggered checkpoint 18974 | -5/Garrison | Triggered checkpoint 18975 | -5/Garrison | Triggered checkpoint 19056 | -5/Garrison | System corruption reached 10% 19141 | -5/Garrison | Discovered new exit (range 8) 19158 | -5/Garrison | Triggered checkpoint 19213 | -5/Garrison | Garrison Relay disabled 19318 | -5/Garrison | Discovered new exit (range 13) 19358 | -5/Garrison | Triggered checkpoint 19457 | -5/Garrison | Discovered new exit (range 10) 19514 | -5/Garrison | Lost 3 allies 19541 | -5/Garrison | Phase Generator disabled 19558 | -5/Garrison | Core integrity fell below 50% 19561 | -5/Garrison | Lost 3 parts (1p1u1w) 19635 | -5/Garrison | Expanded RIF knowledge: Watcher Feeds 19975 | -5/Garrison | Entered Factory 19975 | -4/Factory | Evolved 2 slots: Power x1, Utility x1 20622 | -4/Factory | Discovered new exit (range 14) 20853 | -4/Factory | Sucked down chute 20853 | -4/Factory | Entered Waste 20868 | -4/Waste | EMP discharged 20868 | -4/Waste | System corruption reached 10% 20870 | -4/Waste | Spotted C-40 Crusher 20873 | -4/Waste | Spotted C-40 Crusher 20890 | -4/Waste | Spotted C-40 Crusher 20890 | -4/Waste | Spotted C-40 Crusher 20892 | -4/Waste | Spotted C-40 Crusher 20895 | -4/Waste | Spotted C-40 Crusher 20938 | -4/Waste | Discovered new exit (range 12) 20961 | -4/Waste | Entered Factory 20976 | -4/Factory | Discovered new exit (range 6) 20977 | -4/Factory | Discovered new exit (range 15) 21125 | -4/Factory | Identified exit to Upper Caves 21125 | -4/Factory | Identified exit to Armory 21402 | -4/Factory | Destroyed 9 combat bots 21461 | -4/Factory | First assault squad dispatched 21478 | -4/Factory | Lost 3 parts (1p1u1w) 21621 | -4/Factory | Identified exit to Garrison 21621 | -4/Factory | Entered Garrison 21625 | -4/Garrison | Triggered checkpoint 21675 | -4/Garrison | Triggered checkpoint 21733 | -4/Garrison | Garrison Relay disabled 21861 | -4/Garrison | Found Fusion Bomb Launcher 21929 | -4/Garrison | Spotted B-86 Titan 21975 | -4/Garrison | Triggered checkpoint 21977 | -4/Garrison | Lost 8 allies 21996 | -4/Garrison | Triggered checkpoint 22045 | -4/Garrison | Lost 3 allies 22270 | -4/Garrison | Discovered new exit (range 10) 22302 | -4/Garrison | Garrison Relay disabled 22547 | -4/Garrison | Discovered new exit (range 12) 22619 | -4/Garrison | Triggered checkpoint 22660 | -4/Garrison | Discovered new exit (range 15) 22800 | -4/Garrison | Expanded RIF knowledge: Zone Cloak 22881 | -4/Garrison | Triggered checkpoint 22883 | -4/Garrison | Garrison Relay disabled 23016 | -4/Garrison | Entered Research 23016 | -3/Research | Accompanied by 1 ally 23016 | -3/Research | Evolved 2 slots: Utility x2 23131 | -3/Research | Spotted B-86 Titan 23288 | -3/Research | Discovered new exit (range 15) 23515 | -3/Research | Identified exit to Garrison 23520 | -3/Research | Entered Garrison 23520 | -3/Garrison | Accompanied by 1 ally 23538 | -3/Garrison | Triggered checkpoint 23639 | -3/Garrison | Garrison Relay disabled 23841 | -3/Garrison | Build established: Botlord-Tank 23914 | -3/Garrison | Triggered checkpoint 23931 | -3/Garrison | Spotted B-86 Titan 23936 | -3/Garrison | Triggered checkpoint 23941 | -3/Garrison | Destroyed B-86 Titan 23949 | -3/Garrison | Phase Generator disabled 23975 | -3/Garrison | Lost 6 allies 24010 | -3/Garrison | Triggered checkpoint 24127 | -3/Garrison | Discovered new exit (range 10) 24132 | -3/Garrison | Found embedded Infiltrators 24174 | -3/Garrison | Triggered checkpoint 24224 | -3/Garrison | Garrison Relay disabled 24356 | -3/Garrison | Discovered new exit (range 5) 24378 | -3/Garrison | Garrison Relay disabled 24392 | -3/Garrison | Triggered checkpoint 24448 | -3/Garrison | Rewired B-75 Beast 24512 | -3/Garrison | Build established: Botlord-Construct 24519 | -3/Garrison | Discovered new exit (range 11) 24521 | -3/Garrison | Spotted Striker 24550 | -3/Garrison | Triggered checkpoint 24580 | -3/Garrison | Expanded RIF knowledge: Autoassimilate 24592 | -3/Garrison | Garrison Relay disabled 24635 | -3/Garrison | Destroyed Striker 24660 | -3/Garrison | Rewired Striker 24690 | -3/Garrison | Rewired Executioner 24727 | -3/Garrison | Entered Research 24727 | -3/Research | Accompanied by 9 allies 24734 | -3/Research | Identified exit to Garrison 24736 | -3/Research | Entered Garrison 24736 | -3/Garrison | Accompanied by 9 allies 24746 | -3/Garrison | Triggered checkpoint 24779 | -3/Garrison | Garrison Relay disabled 24872 | -3/Garrison | Triggered checkpoint 24882 | -3/Garrison | Triggered checkpoint 24916 | -3/Garrison | Triggered checkpoint 24925 | -3/Garrison | Lost 6 allies 24981 | -3/Garrison | Lost 3 allies 24986 | -3/Garrison | Triggered checkpoint 25002 | -3/Garrison | Garrison Relay disabled 25019 | -3/Garrison | Triggered checkpoint 25024 | -3/Garrison | Discovered new exit (range 14) 25095 | -3/Garrison | Discovered new exit (range 10) 25158 | -3/Garrison | Discovered new exit (range 12) 25194 | -3/Garrison | Expanded RIF knowledge: Robot Detection 25239 | -3/Garrison | Entered Research 25239 | -2/Research | Accompanied by 9 allies 25239 | -2/Research | Evolved 2 slots: Propulsion x1, Utility x1 25287 | -2/Research | Identified exit to Garrison 25323 | -2/Research | Entered Garrison 25323 | -2/Garrison | Accompanied by 9 allies 25337 | -2/Garrison | Triggered checkpoint 25343 | -2/Garrison | Discovered new exit (range 5) 25395 | -2/Garrison | Expanded RIF knowledge: Threat Obfuscation 25442 | -2/Garrison | Triggered checkpoint 25445 | -2/Garrison | Triggered checkpoint 25455 | -2/Garrison | Spotted B-90 Cyclops 25484 | -2/Garrison | Triggered checkpoint 25485 | -2/Garrison | Allies destroyed B-90 Cyclops 25513 | -2/Garrison | Allies destroyed Executioner 25517 | -2/Garrison | Found Exp. Core Analyzer 25545 | -2/Garrison | Lost 3 parts (1p2u) 25554 | -2/Garrison | Lost 11 allies 25559 | -2/Garrison | Triggered checkpoint 25602 | -2/Garrison | QS Assembler disabled 25617 | -2/Garrison | Found Prototype Processor 25617 | -2/Garrison | Identified Exp. Target Analyzer 25623 | -2/Garrison | Found Prototype Device 25623 | -2/Garrison | Identified Exp. Actuator Array 25652 | -2/Garrison | Garrison Relay disabled 25676 | -2/Garrison | Discovered new exit (range 9) 25681 | -2/Garrison | Spotted B-86 Titan 25721 | -2/Garrison | Destroyed B-86 Titan 25733 | -2/Garrison | Spotted B-90 Cyclops 25739 | -2/Garrison | Destroyed B-90 Cyclops 25759 | -2/Garrison | Rewired B-90 Cyclops 25761 | -2/Garrison | Rewired B-86 Titan 25861 | -2/Garrison | Triggered checkpoint 25920 | -2/Garrison | Discovered new exit (range 14) 26056 | -2/Garrison | Discovered new exit (range 15) 26119 | -2/Garrison | Triggered checkpoint 26205 | -2/Garrison | Entered Research 26205 | -2/Research | Accompanied by 5 allies 26249 | -2/Research | Found Enh. Gamma Bomb Array 26496 | -2/Research | Lost 3 allies 26515 | -2/Research | Identified exit to Testing 26554 | -2/Research | Fabricated Enh. Nova Cannon? 26657 | -2/Research | Spotted B-90 Cyclops 26759 | -2/Research | Entered Testing 26759 | -2/Testing | Accompanied by 1 ally 26802 | -2/Testing | Found Prototype Energy Cannon 26802 | -2/Testing | Identified Null Cannon 26819 | -2/Testing | Found Quantum Capacitor 26825 | -2/Testing | Found Prototype Energy Cannon 26825 | -2/Testing | Identified Cld. Nova Cannon 26846 | -2/Testing | Discovered new exit (range 10) 26894 | -2/Testing | Identified exit to Access 26986 | -2/Testing | Found Prototype Processor 26986 | -2/Testing | Identified Spectral Analyzer 26994 | -2/Testing | Found Prototype Hackware 26997 | -2/Testing | Spotted Striker 26997 | -2/Testing | Spotted Striker 27064 | -2/Testing | Found Prototype Ballistic Cannon 27115 | -2/Testing | Found System Purifier 27139 | -2/Testing | Identified Omega Cannon 27141 | -2/Testing | Found Prototype Ballistic Cannon 27141 | -2/Testing | Identified Perforator 27240 | -2/Testing | Spotted Fortress 27260 | -2/Testing | Discovered new exit (range 6) 27260 | -2/Testing | Discovered new exit (range 7) 27315 | -2/Testing | Entered Protoforge 27344 | -2/Protoforge | Spotted Hotshot 27347 | -2/Protoforge | Spotted B-90 Cyclops 27391 | -2/Protoforge | Spotted Hotshot 27413 | -2/Protoforge | Spotted Hotshot 27414 | -2/Protoforge | Spotted Hotshot 27415 | -2/Protoforge | Build established: Botlord-Mutant 27415 | -2/Protoforge | Spotted Hotshot 27424 | -2/Protoforge | Superfortress began startup sequence 27454 | -2/Protoforge | Found Prototype Storage 27454 | -2/Protoforge | Identified Cep. NT7 Matterbank 27467 | -2/Protoforge | Found Prototype Device 27467 | -2/Protoforge | Identified Cep. Antimissile System 27553 | -2/Protoforge | Found Prototype Device 27554 | -2/Protoforge | Identified Crosscalibrator 27557 | -2/Protoforge | Found Prototype Protection 27557 | -2/Protoforge | Identified Cep. Core Shell 27562 | -2/Protoforge | Spotted Immortal 27566 | -2/Protoforge | Spotted Decapitator 27566 | -2/Protoforge | Spotted Decapitator 27566 | -2/Protoforge | Spotted Decapitator 27566 | -2/Protoforge | Spotted Decapitator 27578 | -2/Protoforge | Destroyed Decapitator 27578 | -2/Protoforge | Destroyed Decapitator 27578 | -2/Protoforge | Destroyed Decapitator 27585 | -2/Protoforge | Destroyed Immortal 27585 | -2/Protoforge | Allies destroyed Decapitator 27664 | -2/Protoforge | Found Cep. Chromion Battery 27670 | -2/Protoforge | Found Cep. Matter Streamer 27675 | -2/Protoforge | Lost 3 parts (2u1w) 27680 | -2/Protoforge | Found Prototype Storage 27680 | -2/Protoforge | Identified Cep. Antigrav Storage Unit 27683 | -2/Protoforge | Found Cep. Antigrav Storage Unit 27724 | -2/Protoforge | Found Cep. Projectile Intercept Suite 27726 | -2/Protoforge | Found Exp. Force Field 27728 | -2/Protoforge | Found Cep. Phase Shift Module 27731 | -2/Protoforge | Found Prototype Protection 27731 | -2/Protoforge | Identified Cep. RG22 Armor 27733 | -2/Protoforge | Found Prototype Device 27733 | -2/Protoforge | Identified Cep. Hardlight Director 27738 | -2/Protoforge | Spotted V829-d 27738 | -2/Protoforge | Spotted V032-u 27738 | -2/Protoforge | Spotted V316-n 27738 | -2/Protoforge | Spotted V793-c 27741 | -2/Protoforge | Garrison activated, responded to threat 27764 | -2/Protoforge | Spotted Decapitator 27764 | -2/Protoforge | Spotted Decapitator 27764 | -2/Protoforge | Spotted V576-b 27764 | -2/Protoforge | Spotted Decapitator 27767 | -2/Protoforge | Destroyed Decapitator 27782 | -2/Protoforge | Destroyed Decapitator 27803 | -2/Protoforge | Destroyed 10 combat bots 27807 | -2/Protoforge | Spotted V478-v 27810 | -2/Protoforge | Spotted V376-x 27818 | -2/Protoforge | Spotted Decapitator 27818 | -2/Protoforge | Spotted Decapitator 27818 | -2/Protoforge | Spotted Decapitator 27818 | -2/Protoforge | Spotted Decapitator 27848 | -2/Protoforge | Destroyed V032-u 27864 | -2/Protoforge | Destroyed V576-b 27885 | -2/Protoforge | Spotted AP7-3 27885 | -2/Protoforge | Spotted AP7-3 27887 | -2/Protoforge | Destroyed AP7-3 27889 | -2/Protoforge | Destroyed AP7-3 27899 | -2/Protoforge | Found Cep. Cloak Mesh 27905 | -2/Protoforge | Found Cep. Dimensional Manipulator 27915 | -2/Protoforge | Found Prototype Device 27915 | -2/Protoforge | Identified Cep. Thermoelectric Network 27940 | -2/Protoforge | Spotted Immortal 27940 | -2/Protoforge | Spotted Immortal 27950 | -2/Protoforge | Destroyed Immortal 27952 | -2/Protoforge | Destroyed Immortal 27955 | -2/Protoforge | Spotted V790-h 27956 | -2/Protoforge | Spotted V283-b 27961 | -2/Protoforge | Found Prototype Launcher 27961 | -2/Protoforge | Identified Cep. Rapid Grenade Launcher 27965 | -2/Protoforge | Found Cep. EMP Blanket Launcher 27994 | -2/Protoforge | Destroyed Decapitator 27994 | -2/Protoforge | Destroyed Decapitator 27994 | -2/Protoforge | Destroyed Decapitator 27999 | -2/Protoforge | Destroyed Decapitator 28010 | -2/Protoforge | Spotted V501-s 28013 | -2/Protoforge | Destroyed V501-s 28017 | -2/Protoforge | Found Prototype Protection 28017 | -2/Protoforge | Identified Med. Regenerative Plating 28025 | -2/Protoforge | Found Cep. Gyrokinetic System 28050 | -2/Protoforge | Found Prototype Hackware 28053 | -2/Protoforge | Found Prototype Device 28053 | -2/Protoforge | Identified Exp. Active Sensor Suite 28059 | -2/Protoforge | Spotted V614-s 28063 | -2/Protoforge | Destroyed V614-s 28071 | -2/Protoforge | Destroyed V478-v 28095 | -2/Protoforge | Destroyed V376-x 28126 | -2/Protoforge | Found Prototype Protection 28126 | -2/Protoforge | Identified Centrium Heavy Armor Plating 28135 | -2/Protoforge | Found Cep. Combat Aerolev Unit 28269 | -2/Protoforge | System corruption reached 10% 28343 | -2/Protoforge | Found Cep. Lightning Penetrator 28415 | -2/Protoforge | Found Cep. Deflector Sword 28417 | -2/Protoforge | Found Exp. Terror Saw 28535 | -2/Protoforge | Found Cep. Heavy Railcannon 28565 | -2/Protoforge | First assault squad dispatched 28858 | -2/Protoforge | Found Faulty Cep. Thermoelectric Network 28978 | -2/Protoforge | Additional patrols dispatched to research labs 28981 | -2/Protoforge | Found Alien Artifact 29031 | -2/Protoforge | Found Cep. Smart ZDS 29252 | -2/Protoforge | Build established: Botlord-Construct 29268 | -2/Protoforge | Spotted Decapitator 29268 | -2/Protoforge | Spotted Decapitator 29274 | -2/Protoforge | Spotted Decapitator 29279 | -2/Protoforge | Destroyed Decapitator 29283 | -2/Protoforge | Spotted Decapitator 29286 | -2/Protoforge | Destroyed Decapitator 29288 | -2/Protoforge | Destroyed Decapitator 29290 | -2/Protoforge | Destroyed Decapitator 29341 | -2/Protoforge | Core integrity fell below 50% 29374 | -2/Protoforge | Destroyed 8 combat bots 29407 | -2/Protoforge | Found Exp. Kinecellerator 29525 | -2/Protoforge | Garrison activated, responded to threat 29539 | -2/Protoforge | Core integrity fell below 20% 29553 | -2/Protoforge | Identified exit to Garrison 29553 | -2/Protoforge | Entered Garrison 29577 | -2/Garrison | Lost 5 parts (2p1u2w) 29697 | -2/Garrison | Triggered checkpoint 29863 | -2/Garrison | Destroyed 9 combat bots 29863 | -2/Garrison | Garrison Relay disabled 29866 | -2/Garrison | Lost 3 parts (1u2w) 30078 | -2/Garrison | Spotted B-90 Cyclops 30087 | -2/Garrison | Autoassimilated Cyclops 9b with RIF 30100 | -2/Garrison | Triggered checkpoint 30103 | -2/Garrison | Destroyed by P-80 Master with Gamma Rifle Last Messages --------------- 29992_ =JDYXLAJBL3XQEXEOFV J5A&C,6P &7Z9UZW 30007_ System corrupted: FCS attempts to trigger Cep. Heavy Railcannon. 30022_ System corrupted: Matter fused (-10). 30038_ N2CFOEB#, SGTKOJ2DOI 30041_ Scrap Engine modifies Hovering Combat-Biometal Exoskeleton: Energy -1.5, Move Heat -1. 30053_ >MNMNEGKP,YYFE SV3YEWK 30058_ Scrap Engine modifies Hovering Combat-Biometal Exoskeleton: Time/Move -45, Support -87, Burnout +40 Renamed Flying Surge-Biometal Exoskeleton. 30065_ Scrap Engine consumes Xenon Bombardment Thruster. 30067_ Scrap Engine consumes Corrupted Biometal Leg. 30069_ Scrap Engine consumes Xenon Bombardment Thruster. 30073_ Acquired 10 matter. 30074_ Acquired 20 matter. 30077_ Y 2KS7FYPR3VLT5&NS=77FTNBQWJBDTP8FFQM 30087_ RIF automatically installing new Cyclops 9b system data, ETC: 6. 30093_ REV|GUUEB#L1WBKAIA